{"text_format":"3","workbook":"xlsx","n_sheets":4,"sheets":["COMPLIANCE DATA FORM","Analysis","Sheet1","raw"],"not_rendered":{"defined_names":2},"read":"whole","date_system":"1900"}

{"sheet":"COMPLIANCE DATA FORM","index":0,"n_rows":70,"n_cols":15,"rows_kept":70,"merged":[[64,4,64,8],[65,4,65,8],[66,4,66,8],[69,6,69,11]]}
[null,"HOME RHD Contract No:",{"$nulls":5},"Project Owner/Entity:"]
[null,"Project Name:",{"$nulls":6},"Contact Name:"]
[null,"Project Address:",{"$nulls":6},"Contact Email:"]
[null,"Project County:",{"$nulls":6},"Contact Phone:"]
[]
[null,"Total Number of Units in Project:",{"$nulls":5},"Compliance/Mgmt Company:"]
[null,"Number of HOME Units in Project:",{"$nulls":6},"Contact Name:"]
[{"$nulls":8},"Contact Email:"]
[{"$nulls":8},"Contact Phone:"]
[]
[null,"MOVE-IN INFORMATION"]
[null,"HOME-Assisted Unit Information",{"$nulls":3},"Tenant Information at Move-in",{"$nulls":3},"Rent Information at Move-in"]
[null,"1-1","1-2","1-3","1-4","1-5","1-6","1-7","1-8","1-9","1-10","1-11","1-12","1-13","1-14"]
[null,"Unit (Apt.)\nNumber","HOME Unit \nDesig-\nnation","# of\nBedrooms","Any\nUtilities\nPaid by\nTenant?","Tenant\nLast Name","Number in\nHousehold\nat Move-in ","Initial\nLease\nDate","Tenant Gross-\nIncome\nat Move-in","Tenant Rent\nat Move-in","Source of\nRent\nSubsidy\nat Move-in","Amount of\nRental Subsidy\nat Move-in","Utility\nAllowance\nat Move-in","Rent\n+ Subsidy\n+ UA =","Move-Out\nDate"]
[{"$nulls":13},{"$f":"IF(J15=\"\",\"\",SUM(J15,L15,M15))","v":""}]
[{"$nulls":13},{"$f":"IF(J16=\"\",\"\",SUM(J16,L16,M16))","v":""}]
[{"$nulls":13},""]
[{"$nulls":13},""]
[{"$nulls":13},{"$f":"IF(J19=\"\",\"\",SUM(J19,L19,M19))","v":""}]
[{"$nulls":13},""]
[{"$nulls":13},""]
[{"$nulls":13},""]
[{"$nulls":13},""]
[{"$nulls":13},""]
[{"$nulls":13},""]
[{"$nulls":13},""]
[{"$nulls":13},""]
[{"$nulls":13},""]
[{"$nulls":13},""]
{"$rows_empty":11}
[null,null,{"$f":"IF(D1=\"\",\"\",\"RHD Contract Number: \"&D1)","v":""},{"$nulls":3},{"$f":"IF(D3=\"\",\"\",\"Street Address: \"&D3)","v":""}]
[null,null,{"$f":"IF(D2=\"\",\"\",D2)","v":""},{"$nulls":3},{"$f":"IF(D4=\"\",\"\",\"Project County: \"&D4)","v":""}]
[null,"CURRENT INFORMATION "]
[null,"HOME-Assisted Unit Information",{"$nulls":3},"Current Tenant Information",{"$nulls":4},"Current Rent Information"]
[null,"2-1","2-2","2-3","2-4","2-5","2-6","2-7","2-8","2-9","2-10","2-11","2-12","2-13","2-14"]
[null,"Unit (Apt.)\nNumber","HOME Unit Desig-\nnation","# of\nBedrooms","Any Utilities Paid by Tenant?","Tenant\nLast Name","Current\nNumber in\nHousehold","Current\nLease\nExpiration\nDate","Current\nTenant\nGross\nIncome","Date\nIncome Info\nCollected","Current\nTenant Rent\n","Current Source of\nRent Subsidy","Current\nAmount of\nRental\nSubsidy","Current\nUtility Allowance","Rent\n+ Subsidy\n+ UA ="]
[{"$nulls":14},{"$f":"IF(K47=\"\",\"\",SUM(K47,M47,N47))","v":""}]
[{"$nulls":14},""]
[{"$nulls":14},""]
[{"$nulls":14},""]
[{"$nulls":14},""]
[{"$nulls":14},""]
[{"$nulls":14},""]
[{"$nulls":14},""]
[{"$nulls":14},""]
[{"$nulls":14},""]
[{"$nulls":14},""]
[{"$nulls":14},""]
[{"$nulls":14},""]
[{"$nulls":14},""]
[{"$nulls":14},""]
[]
[]
[null,"Links:"]
[null,null,"Income Limits:",null,"https://www.hudexchange.info/programs/home/home-income-limits/"]
[null,null,"Rent Limits:",null,"https://www.hudexchange.info/programs/home/home-rent-limits/"]
[null,null,"Utility Allowance: ",null,"https://tools.huduser.gov/husm/uam.html"]
[]
[{"$nulls":4},"2022 report due December 1, 2022"]
[{"$nulls":4},"Submit completed report to:",null,"DOADOHAffordableHousingHelp@Wisconsin.gov"]

{"sheet":"Analysis","index":1,"n_rows":52,"n_cols":14,"rows_kept":52,"hidden":true}
[null,{"$f":"'COMPLIANCE DATA FORM'!B4","v":"Project County:"},{"$f":"'COMPLIANCE DATA FORM'!D4","v":0},null,null,"Date Reviewed:"]
[null,"Date Received:",{"$nulls":3},"Reviewed By:"]
[]
[{"$f":"'COMPLIANCE DATA FORM'!B11","v":"MOVE-IN INFORMATION"}]
[]
[{"$f":"'COMPLIANCE DATA FORM'!B13","v":"1-1"},{"$f":"'COMPLIANCE DATA FORM'!C13","v":"1-2"},{"$f":"'COMPLIANCE DATA FORM'!H13","v":"1-7"},{"$f":"'COMPLIANCE DATA FORM'!G13","v":"1-6"},{"$f":"'COMPLIANCE DATA FORM'!I13","v":"1-8"},null,null,{"$f":"'COMPLIANCE DATA FORM'!D13","v":"1-3"},{"$f":"'COMPLIANCE DATA FORM'!N13","v":"1-13"}]
[{"$f":"'COMPLIANCE DATA FORM'!B14","v":"Unit (Apt.)\nNumber"},{"$f":"'COMPLIANCE DATA FORM'!C14","v":"HOME Unit \nDesig-\nnation"},{"$f":"'COMPLIANCE DATA FORM'!H14","v":"Initial\nLease\nDate"},{"$f":"'COMPLIANCE DATA FORM'!G14","v":"Number in\nHousehold\nat Move-in "},{"$f":"'COMPLIANCE DATA FORM'!I14","v":"Tenant Gross-\nIncome\nat Move-in"},"HOME Income Limit","Income Compliant",{"$f":"'COMPLIANCE DATA FORM'!D14","v":"# of\nBedrooms"},{"$f":"'COMPLIANCE DATA FORM'!N14","v":"Rent\n+ Subsidy\n+ UA ="},"HOME Rent Limit","Rent Compliant","NOTES"]
[{"$f":"IF('COMPLIANCE DATA FORM'!B15=\"\",\"\",'COMPLIANCE DATA FORM'!B15)","v":""},{"$f":"IF('COMPLIANCE DATA FORM'!C15=\"\",\"\",'COMPLIANCE DATA FORM'!C15)","v":""},{"$f":"IF('COMPLIANCE DATA FORM'!H15=\"\",\"\",'COMPLIANCE DATA FORM'!H15)","v":""},{"$f":"IF('COMPLIANCE DATA FORM'!G15=\"\",\"\",'COMPLIANCE DATA FORM'!G15)","v":""},{"$f":"IF('COMPLIANCE DATA FORM'!I15=\"\",\"\",'COMPLIANCE DATA FORM'!I15)","v":""},null,null,{"$f":"IF('COMPLIANCE DATA FORM'!D15=\"\",\"\",'COMPLIANCE DATA FORM'!D15)","v":""},{"$f":"'COMPLIANCE DATA FORM'!N15","v":""}]
[{"$f":"IF('COMPLIANCE DATA FORM'!B16=\"\",\"\",'COMPLIANCE DATA FORM'!B16)","v":""},{"$f":"IF('COMPLIANCE DATA FORM'!C16=\"\",\"\",'COMPLIANCE DATA FORM'!C16)","v":""},{"$f":"IF('COMPLIANCE DATA FORM'!H16=\"\",\"\",'COMPLIANCE DATA FORM'!H16)","v":""},{"$f":"IF('COMPLIANCE DATA FORM'!G16=\"\",\"\",'COMPLIANCE DATA FORM'!G16)","v":""},{"$f":"IF('COMPLIANCE DATA FORM'!I16=\"\",\"\",'COMPLIANCE DATA FORM'!I16)","v":""},null,null,{"$f":"IF('COMPLIANCE DATA FORM'!D16=\"\",\"\",'COMPLIANCE DATA FORM'!D16)","v":""},{"$f":"'COMPLIANCE DATA FORM'!N16","v":""}]
[{"$f":"IF('COMPLIANCE DATA FORM'!B17=\"\",\"\",'COMPLIANCE DATA FORM'!B17)","v":""},{"$f":"IF('COMPLIANCE DATA FORM'!C17=\"\",\"\",'COMPLIANCE DATA FORM'!C17)","v":""},{"$f":"IF('COMPLIANCE DATA FORM'!H17=\"\",\"\",'COMPLIANCE DATA FORM'!H17)","v":""},{"$f":"IF('COMPLIANCE DATA FORM'!G17=\"\",\"\",'COMPLIANCE DATA FORM'!G17)","v":""},{"$f":"IF('COMPLIANCE DATA FORM'!I17=\"\",\"\",'COMPLIANCE DATA FORM'!I17)","v":""},null,null,{"$f":"IF('COMPLIANCE DATA FORM'!D17=\"\",\"\",'COMPLIANCE DATA FORM'!D17)","v":""},{"$f":"'COMPLIANCE DATA FORM'!N17","v":""}]
[{"$f":"IF('COMPLIANCE DATA FORM'!B18=\"\",\"\",'COMPLIANCE DATA FORM'!B18)","v":""},{"$f":"IF('COMPLIANCE DATA FORM'!C18=\"\",\"\",'COMPLIANCE DATA FORM'!C18)","v":""},{"$f":"IF('COMPLIANCE DATA FORM'!H18=\"\",\"\",'COMPLIANCE DATA FORM'!H18)","v":""},{"$f":"IF('COMPLIANCE DATA FORM'!G18=\"\",\"\",'COMPLIANCE DATA FORM'!G18)","v":""},{"$f":"IF('COMPLIANCE DATA FORM'!I18=\"\",\"\",'COMPLIANCE DATA FORM'!I18)","v":""},null,null,{"$f":"IF('COMPLIANCE DATA FORM'!D18=\"\",\"\",'COMPLIANCE DATA FORM'!D18)","v":""},{"$f":"'COMPLIANCE DATA FORM'!N18","v":""}]
[{"$f":"IF('COMPLIANCE DATA FORM'!B19=\"\",\"\",'COMPLIANCE DATA FORM'!B19)","v":""},{"$f":"IF('COMPLIANCE DATA FORM'!C19=\"\",\"\",'COMPLIANCE DATA FORM'!C19)","v":""},{"$f":"IF('COMPLIANCE DATA FORM'!H19=\"\",\"\",'COMPLIANCE DATA FORM'!H19)","v":""},{"$f":"IF('COMPLIANCE DATA FORM'!G19=\"\",\"\",'COMPLIANCE DATA FORM'!G19)","v":""},{"$f":"IF('COMPLIANCE DATA FORM'!I19=\"\",\"\",'COMPLIANCE DATA FORM'!I19)","v":""},null,null,{"$f":"IF('COMPLIANCE DATA FORM'!D19=\"\",\"\",'COMPLIANCE DATA FORM'!D19)","v":""},{"$f":"'COMPLIANCE DATA FORM'!N19","v":""}]
[{"$f":"IF('COMPLIANCE DATA FORM'!B20=\"\",\"\",'COMPLIANCE DATA FORM'!B20)","v":""},{"$f":"IF('COMPLIANCE DATA FORM'!C20=\"\",\"\",'COMPLIANCE DATA FORM'!C20)","v":""},{"$f":"IF('COMPLIANCE DATA FORM'!H20=\"\",\"\",'COMPLIANCE DATA FORM'!H20)","v":""},{"$f":"IF('COMPLIANCE DATA FORM'!G20=\"\",\"\",'COMPLIANCE DATA FORM'!G20)","v":""},{"$f":"IF('COMPLIANCE DATA FORM'!I20=\"\",\"\",'COMPLIANCE DATA FORM'!I20)","v":""},null,null,{"$f":"IF('COMPLIANCE DATA FORM'!D20=\"\",\"\",'COMPLIANCE DATA FORM'!D20)","v":""},{"$f":"'COMPLIANCE DATA FORM'!N20","v":""}]
[{"$f":"IF('COMPLIANCE DATA FORM'!B21=\"\",\"\",'COMPLIANCE DATA FORM'!B21)","v":""},{"$f":"IF('COMPLIANCE DATA FORM'!C21=\"\",\"\",'COMPLIANCE DATA FORM'!C21)","v":""},{"$f":"IF('COMPLIANCE DATA FORM'!H21=\"\",\"\",'COMPLIANCE DATA FORM'!H21)","v":""},{"$f":"IF('COMPLIANCE DATA FORM'!G21=\"\",\"\",'COMPLIANCE DATA FORM'!G21)","v":""},{"$f":"IF('COMPLIANCE DATA FORM'!I21=\"\",\"\",'COMPLIANCE DATA FORM'!I21)","v":""},null,null,{"$f":"IF('COMPLIANCE DATA FORM'!D21=\"\",\"\",'COMPLIANCE DATA FORM'!D21)","v":""},{"$f":"'COMPLIANCE DATA FORM'!N21","v":""}]
[{"$f":"IF('COMPLIANCE DATA FORM'!B22=\"\",\"\",'COMPLIANCE DATA FORM'!B22)","v":""},{"$f":"IF('COMPLIANCE DATA FORM'!C22=\"\",\"\",'COMPLIANCE DATA FORM'!C22)","v":""},{"$f":"IF('COMPLIANCE DATA FORM'!H22=\"\",\"\",'COMPLIANCE DATA FORM'!H22)","v":""},{"$f":"IF('COMPLIANCE DATA FORM'!G22=\"\",\"\",'COMPLIANCE DATA FORM'!G22)","v":""},{"$f":"IF('COMPLIANCE DATA FORM'!I22=\"\",\"\",'COMPLIANCE DATA FORM'!I22)","v":""},null,null,{"$f":"IF('COMPLIANCE DATA FORM'!D22=\"\",\"\",'COMPLIANCE DATA FORM'!D22)","v":""},{"$f":"'COMPLIANCE DATA FORM'!N22","v":""}]
[{"$f":"IF('COMPLIANCE DATA FORM'!B23=\"\",\"\",'COMPLIANCE DATA FORM'!B23)","v":""},{"$f":"IF('COMPLIANCE DATA FORM'!C23=\"\",\"\",'COMPLIANCE DATA FORM'!C23)","v":""},{"$f":"IF('COMPLIANCE DATA FORM'!H23=\"\",\"\",'COMPLIANCE DATA FORM'!H23)","v":""},{"$f":"IF('COMPLIANCE DATA FORM'!G23=\"\",\"\",'COMPLIANCE DATA FORM'!G23)","v":""},{"$f":"IF('COMPLIANCE DATA FORM'!I23=\"\",\"\",'COMPLIANCE DATA FORM'!I23)","v":""},null,null,{"$f":"IF('COMPLIANCE DATA FORM'!D23=\"\",\"\",'COMPLIANCE DATA FORM'!D23)","v":""},{"$f":"'COMPLIANCE DATA FORM'!N23","v":""}]
[{"$f":"IF('COMPLIANCE DATA FORM'!B24=\"\",\"\",'COMPLIANCE DATA FORM'!B24)","v":""},{"$f":"IF('COMPLIANCE DATA FORM'!C24=\"\",\"\",'COMPLIANCE DATA FORM'!C24)","v":""},{"$f":"IF('COMPLIANCE DATA FORM'!H24=\"\",\"\",'COMPLIANCE DATA FORM'!H24)","v":""},{"$f":"IF('COMPLIANCE DATA FORM'!G24=\"\",\"\",'COMPLIANCE DATA FORM'!G24)","v":""},{"$f":"IF('COMPLIANCE DATA FORM'!I24=\"\",\"\",'COMPLIANCE DATA FORM'!I24)","v":""},null,null,{"$f":"IF('COMPLIANCE DATA FORM'!D24=\"\",\"\",'COMPLIANCE DATA FORM'!D24)","v":""},{"$f":"'COMPLIANCE DATA FORM'!N24","v":""}]
[{"$f":"IF('COMPLIANCE DATA FORM'!B25=\"\",\"\",'COMPLIANCE DATA FORM'!B25)","v":""},{"$f":"IF('COMPLIANCE DATA FORM'!C25=\"\",\"\",'COMPLIANCE DATA FORM'!C25)","v":""},{"$f":"IF('COMPLIANCE DATA FORM'!H25=\"\",\"\",'COMPLIANCE DATA FORM'!H25)","v":""},{"$f":"IF('COMPLIANCE DATA FORM'!G25=\"\",\"\",'COMPLIANCE DATA FORM'!G25)","v":""},{"$f":"IF('COMPLIANCE DATA FORM'!I25=\"\",\"\",'COMPLIANCE DATA FORM'!I25)","v":""},null,null,{"$f":"IF('COMPLIANCE DATA FORM'!D25=\"\",\"\",'COMPLIANCE DATA FORM'!D25)","v":""},{"$f":"'COMPLIANCE DATA FORM'!N25","v":""}]
[{"$f":"IF('COMPLIANCE DATA FORM'!B26=\"\",\"\",'COMPLIANCE DATA FORM'!B26)","v":""},{"$f":"IF('COMPLIANCE DATA FORM'!C26=\"\",\"\",'COMPLIANCE DATA FORM'!C26)","v":""},{"$f":"IF('COMPLIANCE DATA FORM'!H26=\"\",\"\",'COMPLIANCE DATA FORM'!H26)","v":""},{"$f":"IF('COMPLIANCE DATA FORM'!G26=\"\",\"\",'COMPLIANCE DATA FORM'!G26)","v":""},{"$f":"IF('COMPLIANCE DATA FORM'!I26=\"\",\"\",'COMPLIANCE DATA FORM'!I26)","v":""},null,null,{"$f":"IF('COMPLIANCE DATA FORM'!D26=\"\",\"\",'COMPLIANCE DATA FORM'!D26)","v":""},{"$f":"'COMPLIANCE DATA FORM'!N26","v":""}]
[{"$f":"IF('COMPLIANCE DATA FORM'!B27=\"\",\"\",'COMPLIANCE DATA FORM'!B27)","v":""},{"$f":"IF('COMPLIANCE DATA FORM'!C27=\"\",\"\",'COMPLIANCE DATA FORM'!C27)","v":""},{"$f":"IF('COMPLIANCE DATA FORM'!H27=\"\",\"\",'COMPLIANCE DATA FORM'!H27)","v":""},{"$f":"IF('COMPLIANCE DATA FORM'!G27=\"\",\"\",'COMPLIANCE DATA FORM'!G27)","v":""},{"$f":"IF('COMPLIANCE DATA FORM'!I27=\"\",\"\",'COMPLIANCE DATA FORM'!I27)","v":""},null,null,{"$f":"IF('COMPLIANCE DATA FORM'!D27=\"\",\"\",'COMPLIANCE DATA FORM'!D27)","v":""},{"$f":"'COMPLIANCE DATA FORM'!N27","v":""}]
[{"$f":"IF('COMPLIANCE DATA FORM'!B28=\"\",\"\",'COMPLIANCE DATA FORM'!B28)","v":""},{"$f":"IF('COMPLIANCE DATA FORM'!C28=\"\",\"\",'COMPLIANCE DATA FORM'!C28)","v":""},{"$f":"IF('COMPLIANCE DATA FORM'!H28=\"\",\"\",'COMPLIANCE DATA FORM'!H28)","v":""},{"$f":"IF('COMPLIANCE DATA FORM'!G28=\"\",\"\",'COMPLIANCE DATA FORM'!G28)","v":""},{"$f":"IF('COMPLIANCE DATA FORM'!I28=\"\",\"\",'COMPLIANCE DATA FORM'!I28)","v":""},null,null,{"$f":"IF('COMPLIANCE DATA FORM'!D28=\"\",\"\",'COMPLIANCE DATA FORM'!D28)","v":""},{"$f":"'COMPLIANCE DATA FORM'!N28","v":""}]
[{"$f":"IF('COMPLIANCE DATA FORM'!B29=\"\",\"\",'COMPLIANCE DATA FORM'!B29)","v":""},{"$f":"IF('COMPLIANCE DATA FORM'!C29=\"\",\"\",'COMPLIANCE DATA FORM'!C29)","v":""},{"$f":"IF('COMPLIANCE DATA FORM'!H29=\"\",\"\",'COMPLIANCE DATA FORM'!H29)","v":""},{"$f":"IF('COMPLIANCE DATA FORM'!G29=\"\",\"\",'COMPLIANCE DATA FORM'!G29)","v":""},{"$f":"IF('COMPLIANCE DATA FORM'!I29=\"\",\"\",'COMPLIANCE DATA FORM'!I29)","v":""},null,null,{"$f":"IF('COMPLIANCE DATA FORM'!D29=\"\",\"\",'COMPLIANCE DATA FORM'!D29)","v":""},{"$f":"'COMPLIANCE DATA FORM'!N29","v":""}]
[]
[]
[{"$f":"'COMPLIANCE DATA FORM'!B43","v":"CURRENT INFORMATION "}]
[]
[{"$f":"'COMPLIANCE DATA FORM'!B45","v":"2-1"},{"$f":"'COMPLIANCE DATA FORM'!C45","v":"2-2"},{"$f":"'COMPLIANCE DATA FORM'!J45","v":"2-9"},{"$f":"'COMPLIANCE DATA FORM'!G45","v":"2-6"},{"$f":"'COMPLIANCE DATA FORM'!I45","v":"2-8"},null,null,{"$f":"'COMPLIANCE DATA FORM'!D45","v":"2-3"},{"$f":"'COMPLIANCE DATA FORM'!O45","v":"2-14"},{"$nulls":3},{"$f":"TODAY()","v":"2022-08-01"},{"$f":"'COMPLIANCE DATA FORM'!H45","v":"2-7"}]
[{"$f":"'COMPLIANCE DATA FORM'!B46","v":"Unit (Apt.)\nNumber"},{"$f":"'COMPLIANCE DATA FORM'!C46","v":"HOME Unit Desig-\nnation"},{"$f":"'COMPLIANCE DATA FORM'!J46","v":"Date\nIncome Info\nCollected"},{"$f":"'COMPLIANCE DATA FORM'!G46","v":"Current\nNumber in\nHousehold"},{"$f":"'COMPLIANCE DATA FORM'!I46","v":"Current\nTenant\nGross\nIncome"},"HOME Income Limit","Income Compliant",{"$f":"'COMPLIANCE DATA FORM'!D46","v":"# of\nBedrooms"},{"$f":"'COMPLIANCE DATA FORM'!O46","v":"Rent\n+ Subsidy\n+ UA ="},"HOME Rent Limit","Rent Compliant","Notes","Lease expire comparison",{"$f":"'COMPLIANCE DATA FORM'!H46","v":"Current\nLease\nExpiration\nDate"}]
[{"$f":"IF('COMPLIANCE DATA FORM'!B47=\"\",\"\",'COMPLIANCE DATA FORM'!B47)","v":""},{"$f":"IF('COMPLIANCE DATA FORM'!C47=\"\",\"\",'COMPLIANCE DATA FORM'!C47)","v":""},{"$f":"IF('COMPLIANCE DATA FORM'!J47=\"\",\"\",'COMPLIANCE DATA FORM'!J47)","v":""},{"$f":"IF('COMPLIANCE DATA FORM'!G47=\"\",\"\",'COMPLIANCE DATA FORM'!G47)","v":""},{"$f":"IF('COMPLIANCE DATA FORM'!I47=\"\",\"\",'COMPLIANCE DATA FORM'!I47)","v":""},null,null,{"$f":"IF('COMPLIANCE DATA FORM'!D47=\"\",\"\",'COMPLIANCE DATA FORM'!D47)","v":""},{"$f":"'COMPLIANCE DATA FORM'!O47","v":""},{"$nulls":4},{"$f":"IF('COMPLIANCE DATA FORM'!H47=\"\",\"\",'COMPLIANCE DATA FORM'!H47)","v":""}]
[{"$f":"IF('COMPLIANCE DATA FORM'!B48=\"\",\"\",'COMPLIANCE DATA FORM'!B48)","v":""},{"$f":"IF('COMPLIANCE DATA FORM'!C48=\"\",\"\",'COMPLIANCE DATA FORM'!C48)","v":""},{"$f":"IF('COMPLIANCE DATA FORM'!J48=\"\",\"\",'COMPLIANCE DATA FORM'!J48)","v":""},{"$f":"IF('COMPLIANCE DATA FORM'!G48=\"\",\"\",'COMPLIANCE DATA FORM'!G48)","v":""},{"$f":"IF('COMPLIANCE DATA FORM'!I48=\"\",\"\",'COMPLIANCE DATA FORM'!I48)","v":""},null,null,{"$f":"IF('COMPLIANCE DATA FORM'!D48=\"\",\"\",'COMPLIANCE DATA FORM'!D48)","v":""},{"$f":"'COMPLIANCE DATA FORM'!O48","v":""},{"$nulls":4},{"$f":"IF('COMPLIANCE DATA FORM'!H48=\"\",\"\",'COMPLIANCE DATA FORM'!H48)","v":""}]
[{"$f":"IF('COMPLIANCE DATA FORM'!B49=\"\",\"\",'COMPLIANCE DATA FORM'!B49)","v":""},{"$f":"IF('COMPLIANCE DATA FORM'!C49=\"\",\"\",'COMPLIANCE DATA FORM'!C49)","v":""},{"$f":"IF('COMPLIANCE DATA FORM'!J49=\"\",\"\",'COMPLIANCE DATA FORM'!J49)","v":""},{"$f":"IF('COMPLIANCE DATA FORM'!G49=\"\",\"\",'COMPLIANCE DATA FORM'!G49)","v":""},{"$f":"IF('COMPLIANCE DATA FORM'!I49=\"\",\"\",'COMPLIANCE DATA FORM'!I49)","v":""},null,null,{"$f":"IF('COMPLIANCE DATA FORM'!D49=\"\",\"\",'COMPLIANCE DATA FORM'!D49)","v":""},{"$f":"'COMPLIANCE DATA FORM'!O49","v":""},{"$nulls":4},{"$f":"IF('COMPLIANCE DATA FORM'!H49=\"\",\"\",'COMPLIANCE DATA FORM'!H49)","v":""}]
[{"$f":"IF('COMPLIANCE DATA FORM'!B50=\"\",\"\",'COMPLIANCE DATA FORM'!B50)","v":""},{"$f":"IF('COMPLIANCE DATA FORM'!C50=\"\",\"\",'COMPLIANCE DATA FORM'!C50)","v":""},{"$f":"IF('COMPLIANCE DATA FORM'!J50=\"\",\"\",'COMPLIANCE DATA FORM'!J50)","v":""},{"$f":"IF('COMPLIANCE DATA FORM'!G50=\"\",\"\",'COMPLIANCE DATA FORM'!G50)","v":""},{"$f":"IF('COMPLIANCE DATA FORM'!I50=\"\",\"\",'COMPLIANCE DATA FORM'!I50)","v":""},null,null,{"$f":"IF('COMPLIANCE DATA FORM'!D50=\"\",\"\",'COMPLIANCE DATA FORM'!D50)","v":""},{"$f":"'COMPLIANCE DATA FORM'!O50","v":""},{"$nulls":4},{"$f":"IF('COMPLIANCE DATA FORM'!H50=\"\",\"\",'COMPLIANCE DATA FORM'!H50)","v":""}]
[{"$f":"IF('COMPLIANCE DATA FORM'!B51=\"\",\"\",'COMPLIANCE DATA FORM'!B51)","v":""},{"$f":"IF('COMPLIANCE DATA FORM'!C51=\"\",\"\",'COMPLIANCE DATA FORM'!C51)","v":""},{"$f":"IF('COMPLIANCE DATA FORM'!J51=\"\",\"\",'COMPLIANCE DATA FORM'!J51)","v":""},{"$f":"IF('COMPLIANCE DATA FORM'!G51=\"\",\"\",'COMPLIANCE DATA FORM'!G51)","v":""},{"$f":"IF('COMPLIANCE DATA FORM'!I51=\"\",\"\",'COMPLIANCE DATA FORM'!I51)","v":""},null,null,{"$f":"IF('COMPLIANCE DATA FORM'!D51=\"\",\"\",'COMPLIANCE DATA FORM'!D51)","v":""},{"$f":"'COMPLIANCE DATA FORM'!O51","v":""},{"$nulls":4},{"$f":"IF('COMPLIANCE DATA FORM'!H51=\"\",\"\",'COMPLIANCE DATA FORM'!H51)","v":""}]
[{"$f":"IF('COMPLIANCE DATA FORM'!B52=\"\",\"\",'COMPLIANCE DATA FORM'!B52)","v":""},{"$f":"IF('COMPLIANCE DATA FORM'!C52=\"\",\"\",'COMPLIANCE DATA FORM'!C52)","v":""},{"$f":"IF('COMPLIANCE DATA FORM'!J52=\"\",\"\",'COMPLIANCE DATA FORM'!J52)","v":""},{"$f":"IF('COMPLIANCE DATA FORM'!G52=\"\",\"\",'COMPLIANCE DATA FORM'!G52)","v":""},{"$f":"IF('COMPLIANCE DATA FORM'!I52=\"\",\"\",'COMPLIANCE DATA FORM'!I52)","v":""},null,null,{"$f":"IF('COMPLIANCE DATA FORM'!D52=\"\",\"\",'COMPLIANCE DATA FORM'!D52)","v":""},{"$f":"'COMPLIANCE DATA FORM'!O52","v":""},{"$nulls":4},{"$f":"IF('COMPLIANCE DATA FORM'!H52=\"\",\"\",'COMPLIANCE DATA FORM'!H52)","v":""}]
[{"$f":"IF('COMPLIANCE DATA FORM'!B53=\"\",\"\",'COMPLIANCE DATA FORM'!B53)","v":""},{"$f":"IF('COMPLIANCE DATA FORM'!C53=\"\",\"\",'COMPLIANCE DATA FORM'!C53)","v":""},{"$f":"IF('COMPLIANCE DATA FORM'!J53=\"\",\"\",'COMPLIANCE DATA FORM'!J53)","v":""},{"$f":"IF('COMPLIANCE DATA FORM'!G53=\"\",\"\",'COMPLIANCE DATA FORM'!G53)","v":""},{"$f":"IF('COMPLIANCE DATA FORM'!I53=\"\",\"\",'COMPLIANCE DATA FORM'!I53)","v":""},null,null,{"$f":"IF('COMPLIANCE DATA FORM'!D53=\"\",\"\",'COMPLIANCE DATA FORM'!D53)","v":""},{"$f":"'COMPLIANCE DATA FORM'!O53","v":""},{"$nulls":4},{"$f":"IF('COMPLIANCE DATA FORM'!H53=\"\",\"\",'COMPLIANCE DATA FORM'!H53)","v":""}]
[{"$f":"IF('COMPLIANCE DATA FORM'!B54=\"\",\"\",'COMPLIANCE DATA FORM'!B54)","v":""},{"$f":"IF('COMPLIANCE DATA FORM'!C54=\"\",\"\",'COMPLIANCE DATA FORM'!C54)","v":""},{"$f":"IF('COMPLIANCE DATA FORM'!J54=\"\",\"\",'COMPLIANCE DATA FORM'!J54)","v":""},{"$f":"IF('COMPLIANCE DATA FORM'!G54=\"\",\"\",'COMPLIANCE DATA FORM'!G54)","v":""},{"$f":"IF('COMPLIANCE DATA FORM'!I54=\"\",\"\",'COMPLIANCE DATA FORM'!I54)","v":""},null,null,{"$f":"IF('COMPLIANCE DATA FORM'!D54=\"\",\"\",'COMPLIANCE DATA FORM'!D54)","v":""},{"$f":"'COMPLIANCE DATA FORM'!O54","v":""},{"$nulls":4},{"$f":"IF('COMPLIANCE DATA FORM'!H54=\"\",\"\",'COMPLIANCE DATA FORM'!H54)","v":""}]
[{"$f":"IF('COMPLIANCE DATA FORM'!B55=\"\",\"\",'COMPLIANCE DATA FORM'!B55)","v":""},{"$f":"IF('COMPLIANCE DATA FORM'!C55=\"\",\"\",'COMPLIANCE DATA FORM'!C55)","v":""},{"$f":"IF('COMPLIANCE DATA FORM'!J55=\"\",\"\",'COMPLIANCE DATA FORM'!J55)","v":""},{"$f":"IF('COMPLIANCE DATA FORM'!G55=\"\",\"\",'COMPLIANCE DATA FORM'!G55)","v":""},{"$f":"IF('COMPLIANCE DATA FORM'!I55=\"\",\"\",'COMPLIANCE DATA FORM'!I55)","v":""},null,null,{"$f":"IF('COMPLIANCE DATA FORM'!D55=\"\",\"\",'COMPLIANCE DATA FORM'!D55)","v":""},{"$f":"'COMPLIANCE DATA FORM'!O55","v":""},{"$nulls":4},{"$f":"IF('COMPLIANCE DATA FORM'!H55=\"\",\"\",'COMPLIANCE DATA FORM'!H55)","v":""}]
[{"$f":"IF('COMPLIANCE DATA FORM'!B56=\"\",\"\",'COMPLIANCE DATA FORM'!B56)","v":""},{"$f":"IF('COMPLIANCE DATA FORM'!C56=\"\",\"\",'COMPLIANCE DATA FORM'!C56)","v":""},{"$f":"IF('COMPLIANCE DATA FORM'!J56=\"\",\"\",'COMPLIANCE DATA FORM'!J56)","v":""},{"$f":"IF('COMPLIANCE DATA FORM'!G56=\"\",\"\",'COMPLIANCE DATA FORM'!G56)","v":""},{"$f":"IF('COMPLIANCE DATA FORM'!I56=\"\",\"\",'COMPLIANCE DATA FORM'!I56)","v":""},null,null,{"$f":"IF('COMPLIANCE DATA FORM'!D56=\"\",\"\",'COMPLIANCE DATA FORM'!D56)","v":""},{"$f":"'COMPLIANCE DATA FORM'!O56","v":""},{"$nulls":4},{"$f":"IF('COMPLIANCE DATA FORM'!H56=\"\",\"\",'COMPLIANCE DATA FORM'!H56)","v":""}]
[{"$f":"IF('COMPLIANCE DATA FORM'!B57=\"\",\"\",'COMPLIANCE DATA FORM'!B57)","v":""},{"$f":"IF('COMPLIANCE DATA FORM'!C57=\"\",\"\",'COMPLIANCE DATA FORM'!C57)","v":""},{"$f":"IF('COMPLIANCE DATA FORM'!J57=\"\",\"\",'COMPLIANCE DATA FORM'!J57)","v":""},{"$f":"IF('COMPLIANCE DATA FORM'!G57=\"\",\"\",'COMPLIANCE DATA FORM'!G57)","v":""},{"$f":"IF('COMPLIANCE DATA FORM'!I57=\"\",\"\",'COMPLIANCE DATA FORM'!I57)","v":""},null,null,{"$f":"IF('COMPLIANCE DATA FORM'!D57=\"\",\"\",'COMPLIANCE DATA FORM'!D57)","v":""},{"$f":"'COMPLIANCE DATA FORM'!O57","v":""},{"$nulls":4},{"$f":"IF('COMPLIANCE DATA FORM'!H57=\"\",\"\",'COMPLIANCE DATA FORM'!H57)","v":""}]
[{"$f":"IF('COMPLIANCE DATA FORM'!B58=\"\",\"\",'COMPLIANCE DATA FORM'!B58)","v":""},{"$f":"IF('COMPLIANCE DATA FORM'!C58=\"\",\"\",'COMPLIANCE DATA FORM'!C58)","v":""},{"$f":"IF('COMPLIANCE DATA FORM'!J58=\"\",\"\",'COMPLIANCE DATA FORM'!J58)","v":""},{"$f":"IF('COMPLIANCE DATA FORM'!G58=\"\",\"\",'COMPLIANCE DATA FORM'!G58)","v":""},{"$f":"IF('COMPLIANCE DATA FORM'!I58=\"\",\"\",'COMPLIANCE DATA FORM'!I58)","v":""},null,null,{"$f":"IF('COMPLIANCE DATA FORM'!D58=\"\",\"\",'COMPLIANCE DATA FORM'!D58)","v":""},{"$f":"'COMPLIANCE DATA FORM'!O58","v":""},{"$nulls":4},{"$f":"IF('COMPLIANCE DATA FORM'!H58=\"\",\"\",'COMPLIANCE DATA FORM'!H58)","v":""}]
[{"$f":"IF('COMPLIANCE DATA FORM'!B59=\"\",\"\",'COMPLIANCE DATA FORM'!B59)","v":""},{"$f":"IF('COMPLIANCE DATA FORM'!C59=\"\",\"\",'COMPLIANCE DATA FORM'!C59)","v":""},{"$f":"IF('COMPLIANCE DATA FORM'!J59=\"\",\"\",'COMPLIANCE DATA FORM'!J59)","v":""},{"$f":"IF('COMPLIANCE DATA FORM'!G59=\"\",\"\",'COMPLIANCE DATA FORM'!G59)","v":""},{"$f":"IF('COMPLIANCE DATA FORM'!I59=\"\",\"\",'COMPLIANCE DATA FORM'!I59)","v":""},null,null,{"$f":"IF('COMPLIANCE DATA FORM'!D59=\"\",\"\",'COMPLIANCE DATA FORM'!D59)","v":""},{"$f":"'COMPLIANCE DATA FORM'!O59","v":""},{"$nulls":4},{"$f":"IF('COMPLIANCE DATA FORM'!H59=\"\",\"\",'COMPLIANCE DATA FORM'!H59)","v":""}]
[{"$f":"IF('COMPLIANCE DATA FORM'!B60=\"\",\"\",'COMPLIANCE DATA FORM'!B60)","v":""},{"$f":"IF('COMPLIANCE DATA FORM'!C60=\"\",\"\",'COMPLIANCE DATA FORM'!C60)","v":""},{"$f":"IF('COMPLIANCE DATA FORM'!J60=\"\",\"\",'COMPLIANCE DATA FORM'!J60)","v":""},{"$f":"IF('COMPLIANCE DATA FORM'!G60=\"\",\"\",'COMPLIANCE DATA FORM'!G60)","v":""},{"$f":"IF('COMPLIANCE DATA FORM'!I60=\"\",\"\",'COMPLIANCE DATA FORM'!I60)","v":""},null,null,{"$f":"IF('COMPLIANCE DATA FORM'!D60=\"\",\"\",'COMPLIANCE DATA FORM'!D60)","v":""},{"$f":"'COMPLIANCE DATA FORM'!O60","v":""},{"$nulls":4},{"$f":"IF('COMPLIANCE DATA FORM'!H60=\"\",\"\",'COMPLIANCE DATA FORM'!H60)","v":""}]
[{"$f":"IF('COMPLIANCE DATA FORM'!B61=\"\",\"\",'COMPLIANCE DATA FORM'!B61)","v":""},{"$f":"IF('COMPLIANCE DATA FORM'!C61=\"\",\"\",'COMPLIANCE DATA FORM'!C61)","v":""},{"$f":"IF('COMPLIANCE DATA FORM'!J61=\"\",\"\",'COMPLIANCE DATA FORM'!J61)","v":""},{"$f":"IF('COMPLIANCE DATA FORM'!G61=\"\",\"\",'COMPLIANCE DATA FORM'!G61)","v":""},{"$f":"IF('COMPLIANCE DATA FORM'!I61=\"\",\"\",'COMPLIANCE DATA FORM'!I61)","v":""},null,null,{"$f":"IF('COMPLIANCE DATA FORM'!D61=\"\",\"\",'COMPLIANCE DATA FORM'!D61)","v":""},{"$f":"'COMPLIANCE DATA FORM'!O61","v":""},{"$nulls":4},{"$f":"IF('COMPLIANCE DATA FORM'!H61=\"\",\"\",'COMPLIANCE DATA FORM'!H61)","v":""}]
[]
[]
[null,{"$f":"IF(COUNTIF(B29:B43,30)=0,\"\",COUNTIF(B29:B43,30))","v":""},{"$f":"IF(B46=1,\"30% Unit:\",IF(B46>1,\"30% Units:\",\"\"))","v":"30% Units:"},{"$nulls":4},{"$f":"IF(COUNTIF(H29:H43,1)=0,\"\",COUNTIF(H29:H43,1))","v":""},"Number of 1 bedrooms:"]
[null,{"$f":"IF(COUNTIF(B29:B43,40)=0,\"\",COUNTIF(B29:B43,40))","v":""},{"$f":"IF(B47=1,\"40% Unit:\",IF(B47>1,\"40% Units:\",\"\"))","v":"40% Units:"},{"$nulls":4},{"$f":"IF(COUNTIF(H29:H43,2)=0,\"\",COUNTIF(H29:H43,2))","v":""},"Number of 2 bedrooms:"]
[null,{"$f":"IF(COUNTIF(B29:B43,50)=0,\"\",COUNTIF(B29:B43,50))","v":""},{"$f":"IF(B48=1,\"50% Unit:\",IF(B48>1,\"50% Units:\",\"\"))","v":"50% Units:"},{"$nulls":4},{"$f":"IF(COUNTIF(H29:H43,3)=0,\"\",COUNTIF(H29:H43,3))","v":""},"Number of 3 bedrooms:"]
[null,{"$f":"IF(COUNTIF(B29:B43,60)=0,\"\",COUNTIF(B29:B43,60))","v":""},{"$f":"IF(B49=1,\"60% Unit:\",IF(B49>1,\"60% Units:\",\" \"))","v":"60% Units:"},{"$nulls":4},{"$f":"IF(COUNTIF(H29:H43,4)=0,\"\",COUNTIF(H29:H43,4))","v":""},"Number of 4 bedrooms:"]
[null,{"$f":"IF(COUNTIF(B29:B43,\"SRO\")=0,\"\",COUNTIF(B29:B43,\"SRO\"))","v":""},{"$f":"IF(B50=1,\"SRO Unit:\",IF(B50>1,\"SRO Units:\",\"\"))","v":"SRO Units:"}]
[]
[null,{"$f":"IF(SUM(B46:B51)=0,\"\",SUM(B46:B51))","v":""},"Total Number of Units:"]

{"sheet":"Sheet1","index":2,"n_rows":0,"n_cols":0,"rows_kept":0,"hidden":true}

{"sheet":"raw","index":3,"n_rows":30,"n_cols":28,"rows_kept":30,"hidden":true}
[{"$f":"'COMPLIANCE DATA FORM'!$D$1","v":0},{"$f":"'COMPLIANCE DATA FORM'!$D$2","v":0},{"$f":"'COMPLIANCE DATA FORM'!$D$3","v":0},{"$f":"'COMPLIANCE DATA FORM'!$D$4","v":0},{"$f":"'COMPLIANCE DATA FORM'!$E$6","v":0},{"$f":"'COMPLIANCE DATA FORM'!$E$7","v":0},{"$f":"'COMPLIANCE DATA FORM'!$K$1","v":0},{"$f":"'COMPLIANCE DATA FORM'!$K$2","v":0},{"$f":"'COMPLIANCE DATA FORM'!$K$3","v":0},{"$f":"'COMPLIANCE DATA FORM'!$K$4","v":0},{"$f":"'COMPLIANCE DATA FORM'!$K$6","v":0},{"$f":"'COMPLIANCE DATA FORM'!$K$7","v":0},{"$f":"'COMPLIANCE DATA FORM'!$K$8","v":0},{"$f":"'COMPLIANCE DATA FORM'!$K$9","v":0},{"$f":"'COMPLIANCE DATA FORM'!B15","v":0},{"$f":"'COMPLIANCE DATA FORM'!C15","v":0},{"$f":"'COMPLIANCE DATA FORM'!D15","v":0},{"$f":"'COMPLIANCE DATA FORM'!E15","v":0},{"$f":"'COMPLIANCE DATA FORM'!F15","v":0},{"$f":"'COMPLIANCE DATA FORM'!G15","v":0},{"$f":"'COMPLIANCE DATA FORM'!H15","v":"00:00:00"},{"$f":"'COMPLIANCE DATA FORM'!I15","v":{"v":0,"d":"$0"}},{"$f":"'COMPLIANCE DATA FORM'!J15","v":0},{"$f":"'COMPLIANCE DATA FORM'!K15","v":0},{"$f":"'COMPLIANCE DATA FORM'!L15","v":{"v":0,"d":"0.00"}},{"$f":"'COMPLIANCE DATA FORM'!M15","v":0},{"$f":"'COMPLIANCE DATA FORM'!N15","v":""},{"$f":"'COMPLIANCE DATA FORM'!O15","v":0}]
[{"$f":"'COMPLIANCE DATA FORM'!$D$1","v":0},{"$f":"'COMPLIANCE DATA FORM'!$D$2","v":0},{"$f":"'COMPLIANCE DATA FORM'!$D$3","v":0},{"$f":"'COMPLIANCE DATA FORM'!$D$4","v":0},{"$f":"'COMPLIANCE DATA FORM'!$E$6","v":0},{"$f":"'COMPLIANCE DATA FORM'!$E$7","v":0},{"$f":"'COMPLIANCE DATA FORM'!$K$1","v":0},{"$f":"'COMPLIANCE DATA FORM'!$K$2","v":0},{"$f":"'COMPLIANCE DATA FORM'!$K$3","v":0},{"$f":"'COMPLIANCE DATA FORM'!$K$4","v":0},{"$f":"'COMPLIANCE DATA FORM'!$K$6","v":0},{"$f":"'COMPLIANCE DATA FORM'!$K$7","v":0},{"$f":"'COMPLIANCE DATA FORM'!$K$8","v":0},{"$f":"'COMPLIANCE DATA FORM'!$K$9","v":0},{"$f":"'COMPLIANCE DATA FORM'!B16","v":0},{"$f":"'COMPLIANCE DATA FORM'!C16","v":0},{"$f":"'COMPLIANCE DATA FORM'!D16","v":0},{"$f":"'COMPLIANCE DATA FORM'!E16","v":0},{"$f":"'COMPLIANCE DATA FORM'!F16","v":0},{"$f":"'COMPLIANCE DATA FORM'!G16","v":0},{"$f":"'COMPLIANCE DATA FORM'!H16","v":"00:00:00"},{"$f":"'COMPLIANCE DATA FORM'!I16","v":{"v":0,"d":"$0"}},{"$f":"'COMPLIANCE DATA FORM'!J16","v":0},{"$f":"'COMPLIANCE DATA FORM'!K16","v":0},{"$f":"'COMPLIANCE DATA FORM'!L16","v":{"v":0,"d":"0.00"}},{"$f":"'COMPLIANCE DATA FORM'!M16","v":0},{"$f":"'COMPLIANCE DATA FORM'!N16","v":""},{"$f":"'COMPLIANCE DATA FORM'!O16","v":0}]
[{"$f":"'COMPLIANCE DATA FORM'!$D$1","v":0},{"$f":"'COMPLIANCE DATA FORM'!$D$2","v":0},{"$f":"'COMPLIANCE DATA FORM'!$D$3","v":0},{"$f":"'COMPLIANCE DATA FORM'!$D$4","v":0},{"$f":"'COMPLIANCE DATA FORM'!$E$6","v":0},{"$f":"'COMPLIANCE DATA FORM'!$E$7","v":0},{"$f":"'COMPLIANCE DATA FORM'!$K$1","v":0},{"$f":"'COMPLIANCE DATA FORM'!$K$2","v":0},{"$f":"'COMPLIANCE DATA FORM'!$K$3","v":0},{"$f":"'COMPLIANCE DATA FORM'!$K$4","v":0},{"$f":"'COMPLIANCE DATA FORM'!$K$6","v":0},{"$f":"'COMPLIANCE DATA FORM'!$K$7","v":0},{"$f":"'COMPLIANCE DATA FORM'!$K$8","v":0},{"$f":"'COMPLIANCE DATA FORM'!$K$9","v":0},{"$f":"'COMPLIANCE DATA FORM'!B17","v":0},{"$f":"'COMPLIANCE DATA FORM'!C17","v":0},{"$f":"'COMPLIANCE DATA FORM'!D17","v":0},{"$f":"'COMPLIANCE DATA FORM'!E17","v":0},{"$f":"'COMPLIANCE DATA FORM'!F17","v":0},{"$f":"'COMPLIANCE DATA FORM'!G17","v":0},{"$f":"'COMPLIANCE DATA FORM'!H17","v":"00:00:00"},{"$f":"'COMPLIANCE DATA FORM'!I17","v":{"v":0,"d":"$0"}},{"$f":"'COMPLIANCE DATA FORM'!J17","v":0},{"$f":"'COMPLIANCE DATA FORM'!K17","v":0},{"$f":"'COMPLIANCE DATA FORM'!L17","v":{"v":0,"d":"0.00"}},{"$f":"'COMPLIANCE DATA FORM'!M17","v":0},{"$f":"'COMPLIANCE DATA FORM'!N17","v":""},{"$f":"'COMPLIANCE DATA FORM'!O17","v":0}]
[{"$f":"'COMPLIANCE DATA FORM'!$D$1","v":0},{"$f":"'COMPLIANCE DATA FORM'!$D$2","v":0},{"$f":"'COMPLIANCE DATA FORM'!$D$3","v":0},{"$f":"'COMPLIANCE DATA FORM'!$D$4","v":0},{"$f":"'COMPLIANCE DATA FORM'!$E$6","v":0},{"$f":"'COMPLIANCE DATA FORM'!$E$7","v":0},{"$f":"'COMPLIANCE DATA FORM'!$K$1","v":0},{"$f":"'COMPLIANCE DATA FORM'!$K$2","v":0},{"$f":"'COMPLIANCE DATA FORM'!$K$3","v":0},{"$f":"'COMPLIANCE DATA FORM'!$K$4","v":0},{"$f":"'COMPLIANCE DATA FORM'!$K$6","v":0},{"$f":"'COMPLIANCE DATA FORM'!$K$7","v":0},{"$f":"'COMPLIANCE DATA FORM'!$K$8","v":0},{"$f":"'COMPLIANCE DATA FORM'!$K$9","v":0},{"$f":"'COMPLIANCE DATA FORM'!B18","v":0},{"$f":"'COMPLIANCE DATA FORM'!C18","v":0},{"$f":"'COMPLIANCE DATA FORM'!D18","v":0},{"$f":"'COMPLIANCE DATA FORM'!E18","v":0},{"$f":"'COMPLIANCE DATA FORM'!F18","v":0},{"$f":"'COMPLIANCE DATA FORM'!G18","v":0},{"$f":"'COMPLIANCE DATA FORM'!H18","v":"00:00:00"},{"$f":"'COMPLIANCE DATA FORM'!I18","v":{"v":0,"d":"$0"}},{"$f":"'COMPLIANCE DATA FORM'!J18","v":0},{"$f":"'COMPLIANCE DATA FORM'!K18","v":0},{"$f":"'COMPLIANCE DATA FORM'!L18","v":{"v":0,"d":"0.00"}},{"$f":"'COMPLIANCE DATA FORM'!M18","v":0},{"$f":"'COMPLIANCE DATA FORM'!N18","v":""},{"$f":"'COMPLIANCE DATA FORM'!O18","v":0}]
[{"$f":"'COMPLIANCE DATA FORM'!$D$1","v":0},{"$f":"'COMPLIANCE DATA FORM'!$D$2","v":0},{"$f":"'COMPLIANCE DATA FORM'!$D$3","v":0},{"$f":"'COMPLIANCE DATA FORM'!$D$4","v":0},{"$f":"'COMPLIANCE DATA FORM'!$E$6","v":0},{"$f":"'COMPLIANCE DATA FORM'!$E$7","v":0},{"$f":"'COMPLIANCE DATA FORM'!$K$1","v":0},{"$f":"'COMPLIANCE DATA FORM'!$K$2","v":0},{"$f":"'COMPLIANCE DATA FORM'!$K$3","v":0},{"$f":"'COMPLIANCE DATA FORM'!$K$4","v":0},{"$f":"'COMPLIANCE DATA FORM'!$K$6","v":0},{"$f":"'COMPLIANCE DATA FORM'!$K$7","v":0},{"$f":"'COMPLIANCE DATA FORM'!$K$8","v":0},{"$f":"'COMPLIANCE DATA FORM'!$K$9","v":0},{"$f":"'COMPLIANCE DATA FORM'!B19","v":0},{"$f":"'COMPLIANCE DATA FORM'!C19","v":0},{"$f":"'COMPLIANCE DATA FORM'!D19","v":0},{"$f":"'COMPLIANCE DATA FORM'!E19","v":0},{"$f":"'COMPLIANCE DATA FORM'!F19","v":0},{"$f":"'COMPLIANCE DATA FORM'!G19","v":0},{"$f":"'COMPLIANCE DATA FORM'!H19","v":"00:00:00"},{"$f":"'COMPLIANCE DATA FORM'!I19","v":{"v":0,"d":"$0"}},{"$f":"'COMPLIANCE DATA FORM'!J19","v":0},{"$f":"'COMPLIANCE DATA FORM'!K19","v":0},{"$f":"'COMPLIANCE DATA FORM'!L19","v":{"v":0,"d":"0.00"}},{"$f":"'COMPLIANCE DATA FORM'!M19","v":0},{"$f":"'COMPLIANCE DATA FORM'!N19","v":""},{"$f":"'COMPLIANCE DATA FORM'!O19","v":0}]
[{"$f":"'COMPLIANCE DATA FORM'!$D$1","v":0},{"$f":"'COMPLIANCE DATA FORM'!$D$2","v":0},{"$f":"'COMPLIANCE DATA FORM'!$D$3","v":0},{"$f":"'COMPLIANCE DATA FORM'!$D$4","v":0},{"$f":"'COMPLIANCE DATA FORM'!$E$6","v":0},{"$f":"'COMPLIANCE DATA FORM'!$E$7","v":0},{"$f":"'COMPLIANCE DATA FORM'!$K$1","v":0},{"$f":"'COMPLIANCE DATA FORM'!$K$2","v":0},{"$f":"'COMPLIANCE DATA FORM'!$K$3","v":0},{"$f":"'COMPLIANCE DATA FORM'!$K$4","v":0},{"$f":"'COMPLIANCE DATA FORM'!$K$6","v":0},{"$f":"'COMPLIANCE DATA FORM'!$K$7","v":0},{"$f":"'COMPLIANCE DATA FORM'!$K$8","v":0},{"$f":"'COMPLIANCE DATA FORM'!$K$9","v":0},{"$f":"'COMPLIANCE DATA FORM'!B20","v":0},{"$f":"'COMPLIANCE DATA FORM'!C20","v":0},{"$f":"'COMPLIANCE DATA FORM'!D20","v":0},{"$f":"'COMPLIANCE DATA FORM'!E20","v":0},{"$f":"'COMPLIANCE DATA FORM'!F20","v":0},{"$f":"'COMPLIANCE DATA FORM'!G20","v":0},{"$f":"'COMPLIANCE DATA FORM'!H20","v":"00:00:00"},{"$f":"'COMPLIANCE DATA FORM'!I20","v":{"v":0,"d":"$0"}},{"$f":"'COMPLIANCE DATA FORM'!J20","v":0},{"$f":"'COMPLIANCE DATA FORM'!K20","v":0},{"$f":"'COMPLIANCE DATA FORM'!L20","v":{"v":0,"d":"0.00"}},{"$f":"'COMPLIANCE DATA FORM'!M20","v":0},{"$f":"'COMPLIANCE DATA FORM'!N20","v":""},{"$f":"'COMPLIANCE DATA FORM'!O20","v":0}]
[{"$f":"'COMPLIANCE DATA FORM'!$D$1","v":0},{"$f":"'COMPLIANCE DATA FORM'!$D$2","v":0},{"$f":"'COMPLIANCE DATA FORM'!$D$3","v":0},{"$f":"'COMPLIANCE DATA FORM'!$D$4","v":0},{"$f":"'COMPLIANCE DATA FORM'!$E$6","v":0},{"$f":"'COMPLIANCE DATA FORM'!$E$7","v":0},{"$f":"'COMPLIANCE DATA FORM'!$K$1","v":0},{"$f":"'COMPLIANCE DATA FORM'!$K$2","v":0},{"$f":"'COMPLIANCE DATA FORM'!$K$3","v":0},{"$f":"'COMPLIANCE DATA FORM'!$K$4","v":0},{"$f":"'COMPLIANCE DATA FORM'!$K$6","v":0},{"$f":"'COMPLIANCE DATA FORM'!$K$7","v":0},{"$f":"'COMPLIANCE DATA FORM'!$K$8","v":0},{"$f":"'COMPLIANCE DATA FORM'!$K$9","v":0},{"$f":"'COMPLIANCE DATA FORM'!B21","v":0},{"$f":"'COMPLIANCE DATA FORM'!C21","v":0},{"$f":"'COMPLIANCE DATA FORM'!D21","v":0},{"$f":"'COMPLIANCE DATA FORM'!E21","v":0},{"$f":"'COMPLIANCE DATA FORM'!F21","v":0},{"$f":"'COMPLIANCE DATA FORM'!G21","v":0},{"$f":"'COMPLIANCE DATA FORM'!H21","v":"00:00:00"},{"$f":"'COMPLIANCE DATA FORM'!I21","v":{"v":0,"d":"$0"}},{"$f":"'COMPLIANCE DATA FORM'!J21","v":0},{"$f":"'COMPLIANCE DATA FORM'!K21","v":0},{"$f":"'COMPLIANCE DATA FORM'!L21","v":{"v":0,"d":"0.00"}},{"$f":"'COMPLIANCE DATA FORM'!M21","v":0},{"$f":"'COMPLIANCE DATA FORM'!N21","v":""},{"$f":"'COMPLIANCE DATA FORM'!O21","v":0}]
[{"$f":"'COMPLIANCE DATA FORM'!$D$1","v":0},{"$f":"'COMPLIANCE DATA FORM'!$D$2","v":0},{"$f":"'COMPLIANCE DATA FORM'!$D$3","v":0},{"$f":"'COMPLIANCE DATA FORM'!$D$4","v":0},{"$f":"'COMPLIANCE DATA FORM'!$E$6","v":0},{"$f":"'COMPLIANCE DATA FORM'!$E$7","v":0},{"$f":"'COMPLIANCE DATA FORM'!$K$1","v":0},{"$f":"'COMPLIANCE DATA FORM'!$K$2","v":0},{"$f":"'COMPLIANCE DATA FORM'!$K$3","v":0},{"$f":"'COMPLIANCE DATA FORM'!$K$4","v":0},{"$f":"'COMPLIANCE DATA FORM'!$K$6","v":0},{"$f":"'COMPLIANCE DATA FORM'!$K$7","v":0},{"$f":"'COMPLIANCE DATA FORM'!$K$8","v":0},{"$f":"'COMPLIANCE DATA FORM'!$K$9","v":0},{"$f":"'COMPLIANCE DATA FORM'!B22","v":0},{"$f":"'COMPLIANCE DATA FORM'!C22","v":0},{"$f":"'COMPLIANCE DATA FORM'!D22","v":0},{"$f":"'COMPLIANCE DATA FORM'!E22","v":0},{"$f":"'COMPLIANCE DATA FORM'!F22","v":0},{"$f":"'COMPLIANCE DATA FORM'!G22","v":0},{"$f":"'COMPLIANCE DATA FORM'!H22","v":"00:00:00"},{"$f":"'COMPLIANCE DATA FORM'!I22","v":{"v":0,"d":"$0"}},{"$f":"'COMPLIANCE DATA FORM'!J22","v":0},{"$f":"'COMPLIANCE DATA FORM'!K22","v":0},{"$f":"'COMPLIANCE DATA FORM'!L22","v":{"v":0,"d":"0.00"}},{"$f":"'COMPLIANCE DATA FORM'!M22","v":0},{"$f":"'COMPLIANCE DATA FORM'!N22","v":""},{"$f":"'COMPLIANCE DATA FORM'!O22","v":0}]
[{"$f":"'COMPLIANCE DATA FORM'!$D$1","v":0},{"$f":"'COMPLIANCE DATA FORM'!$D$2","v":0},{"$f":"'COMPLIANCE DATA FORM'!$D$3","v":0},{"$f":"'COMPLIANCE DATA FORM'!$D$4","v":0},{"$f":"'COMPLIANCE DATA FORM'!$E$6","v":0},{"$f":"'COMPLIANCE DATA FORM'!$E$7","v":0},{"$f":"'COMPLIANCE DATA FORM'!$K$1","v":0},{"$f":"'COMPLIANCE DATA FORM'!$K$2","v":0},{"$f":"'COMPLIANCE DATA FORM'!$K$3","v":0},{"$f":"'COMPLIANCE DATA FORM'!$K$4","v":0},{"$f":"'COMPLIANCE DATA FORM'!$K$6","v":0},{"$f":"'COMPLIANCE DATA FORM'!$K$7","v":0},{"$f":"'COMPLIANCE DATA FORM'!$K$8","v":0},{"$f":"'COMPLIANCE DATA FORM'!$K$9","v":0},{"$f":"'COMPLIANCE DATA FORM'!B23","v":0},{"$f":"'COMPLIANCE DATA FORM'!C23","v":0},{"$f":"'COMPLIANCE DATA FORM'!D23","v":0},{"$f":"'COMPLIANCE DATA FORM'!E23","v":0},{"$f":"'COMPLIANCE DATA FORM'!F23","v":0},{"$f":"'COMPLIANCE DATA FORM'!G23","v":0},{"$f":"'COMPLIANCE DATA FORM'!H23","v":"00:00:00"},{"$f":"'COMPLIANCE DATA FORM'!I23","v":{"v":0,"d":"$0"}},{"$f":"'COMPLIANCE DATA FORM'!J23","v":0},{"$f":"'COMPLIANCE DATA FORM'!K23","v":0},{"$f":"'COMPLIANCE DATA FORM'!L23","v":{"v":0,"d":"0.00"}},{"$f":"'COMPLIANCE DATA FORM'!M23","v":0},{"$f":"'COMPLIANCE DATA FORM'!N23","v":""},{"$f":"'COMPLIANCE DATA FORM'!O23","v":0}]
[{"$f":"'COMPLIANCE DATA FORM'!$D$1","v":0},{"$f":"'COMPLIANCE DATA FORM'!$D$2","v":0},{"$f":"'COMPLIANCE DATA FORM'!$D$3","v":0},{"$f":"'COMPLIANCE DATA FORM'!$D$4","v":0},{"$f":"'COMPLIANCE DATA FORM'!$E$6","v":0},{"$f":"'COMPLIANCE DATA FORM'!$E$7","v":0},{"$f":"'COMPLIANCE DATA FORM'!$K$1","v":0},{"$f":"'COMPLIANCE DATA FORM'!$K$2","v":0},{"$f":"'COMPLIANCE DATA FORM'!$K$3","v":0},{"$f":"'COMPLIANCE DATA FORM'!$K$4","v":0},{"$f":"'COMPLIANCE DATA FORM'!$K$6","v":0},{"$f":"'COMPLIANCE DATA FORM'!$K$7","v":0},{"$f":"'COMPLIANCE DATA FORM'!$K$8","v":0},{"$f":"'COMPLIANCE DATA FORM'!$K$9","v":0},{"$f":"'COMPLIANCE DATA FORM'!B24","v":0},{"$f":"'COMPLIANCE DATA FORM'!C24","v":0},{"$f":"'COMPLIANCE DATA FORM'!D24","v":0},{"$f":"'COMPLIANCE DATA FORM'!E24","v":0},{"$f":"'COMPLIANCE DATA FORM'!F24","v":0},{"$f":"'COMPLIANCE DATA FORM'!G24","v":0},{"$f":"'COMPLIANCE DATA FORM'!H24","v":"00:00:00"},{"$f":"'COMPLIANCE DATA FORM'!I24","v":{"v":0,"d":"$0"}},{"$f":"'COMPLIANCE DATA FORM'!J24","v":0},{"$f":"'COMPLIANCE DATA FORM'!K24","v":0},{"$f":"'COMPLIANCE DATA FORM'!L24","v":{"v":0,"d":"0.00"}},{"$f":"'COMPLIANCE DATA FORM'!M24","v":0},{"$f":"'COMPLIANCE DATA FORM'!N24","v":""},{"$f":"'COMPLIANCE DATA FORM'!O24","v":0}]
[{"$f":"'COMPLIANCE DATA FORM'!$D$1","v":0},{"$f":"'COMPLIANCE DATA FORM'!$D$2","v":0},{"$f":"'COMPLIANCE DATA FORM'!$D$3","v":0},{"$f":"'COMPLIANCE DATA FORM'!$D$4","v":0},{"$f":"'COMPLIANCE DATA FORM'!$E$6","v":0},{"$f":"'COMPLIANCE DATA FORM'!$E$7","v":0},{"$f":"'COMPLIANCE DATA FORM'!$K$1","v":0},{"$f":"'COMPLIANCE DATA FORM'!$K$2","v":0},{"$f":"'COMPLIANCE DATA FORM'!$K$3","v":0},{"$f":"'COMPLIANCE DATA FORM'!$K$4","v":0},{"$f":"'COMPLIANCE DATA FORM'!$K$6","v":0},{"$f":"'COMPLIANCE DATA FORM'!$K$7","v":0},{"$f":"'COMPLIANCE DATA FORM'!$K$8","v":0},{"$f":"'COMPLIANCE DATA FORM'!$K$9","v":0},{"$f":"'COMPLIANCE DATA FORM'!B25","v":0},{"$f":"'COMPLIANCE DATA FORM'!C25","v":0},{"$f":"'COMPLIANCE DATA FORM'!D25","v":0},{"$f":"'COMPLIANCE DATA FORM'!E25","v":0},{"$f":"'COMPLIANCE DATA FORM'!F25","v":0},{"$f":"'COMPLIANCE DATA FORM'!G25","v":0},{"$f":"'COMPLIANCE DATA FORM'!H25","v":"00:00:00"},{"$f":"'COMPLIANCE DATA FORM'!I25","v":{"v":0,"d":"$0"}},{"$f":"'COMPLIANCE DATA FORM'!J25","v":0},{"$f":"'COMPLIANCE DATA FORM'!K25","v":0},{"$f":"'COMPLIANCE DATA FORM'!L25","v":{"v":0,"d":"0.00"}},{"$f":"'COMPLIANCE DATA FORM'!M25","v":0},{"$f":"'COMPLIANCE DATA FORM'!N25","v":""},{"$f":"'COMPLIANCE DATA FORM'!O25","v":0}]
[{"$f":"'COMPLIANCE DATA FORM'!$D$1","v":0},{"$f":"'COMPLIANCE DATA FORM'!$D$2","v":0},{"$f":"'COMPLIANCE DATA FORM'!$D$3","v":0},{"$f":"'COMPLIANCE DATA FORM'!$D$4","v":0},{"$f":"'COMPLIANCE DATA FORM'!$E$6","v":0},{"$f":"'COMPLIANCE DATA FORM'!$E$7","v":0},{"$f":"'COMPLIANCE DATA FORM'!$K$1","v":0},{"$f":"'COMPLIANCE DATA FORM'!$K$2","v":0},{"$f":"'COMPLIANCE DATA FORM'!$K$3","v":0},{"$f":"'COMPLIANCE DATA FORM'!$K$4","v":0},{"$f":"'COMPLIANCE DATA FORM'!$K$6","v":0},{"$f":"'COMPLIANCE DATA FORM'!$K$7","v":0},{"$f":"'COMPLIANCE DATA FORM'!$K$8","v":0},{"$f":"'COMPLIANCE DATA FORM'!$K$9","v":0},{"$f":"'COMPLIANCE DATA FORM'!B26","v":0},{"$f":"'COMPLIANCE DATA FORM'!C26","v":0},{"$f":"'COMPLIANCE DATA FORM'!D26","v":0},{"$f":"'COMPLIANCE DATA FORM'!E26","v":0},{"$f":"'COMPLIANCE DATA FORM'!F26","v":0},{"$f":"'COMPLIANCE DATA FORM'!G26","v":0},{"$f":"'COMPLIANCE DATA FORM'!H26","v":"00:00:00"},{"$f":"'COMPLIANCE DATA FORM'!I26","v":{"v":0,"d":"$0"}},{"$f":"'COMPLIANCE DATA FORM'!J26","v":0},{"$f":"'COMPLIANCE DATA FORM'!K26","v":0},{"$f":"'COMPLIANCE DATA FORM'!L26","v":{"v":0,"d":"0.00"}},{"$f":"'COMPLIANCE DATA FORM'!M26","v":0},{"$f":"'COMPLIANCE DATA FORM'!N26","v":""},{"$f":"'COMPLIANCE DATA FORM'!O26","v":0}]
[{"$f":"'COMPLIANCE DATA FORM'!$D$1","v":0},{"$f":"'COMPLIANCE DATA FORM'!$D$2","v":0},{"$f":"'COMPLIANCE DATA FORM'!$D$3","v":0},{"$f":"'COMPLIANCE DATA FORM'!$D$4","v":0},{"$f":"'COMPLIANCE DATA FORM'!$E$6","v":0},{"$f":"'COMPLIANCE DATA FORM'!$E$7","v":0},{"$f":"'COMPLIANCE DATA FORM'!$K$1","v":0},{"$f":"'COMPLIANCE DATA FORM'!$K$2","v":0},{"$f":"'COMPLIANCE DATA FORM'!$K$3","v":0},{"$f":"'COMPLIANCE DATA FORM'!$K$4","v":0},{"$f":"'COMPLIANCE DATA FORM'!$K$6","v":0},{"$f":"'COMPLIANCE DATA FORM'!$K$7","v":0},{"$f":"'COMPLIANCE DATA FORM'!$K$8","v":0},{"$f":"'COMPLIANCE DATA FORM'!$K$9","v":0},{"$f":"'COMPLIANCE DATA FORM'!B27","v":0},{"$f":"'COMPLIANCE DATA FORM'!C27","v":0},{"$f":"'COMPLIANCE DATA FORM'!D27","v":0},{"$f":"'COMPLIANCE DATA FORM'!E27","v":0},{"$f":"'COMPLIANCE DATA FORM'!F27","v":0},{"$f":"'COMPLIANCE DATA FORM'!G27","v":0},{"$f":"'COMPLIANCE DATA FORM'!H27","v":"00:00:00"},{"$f":"'COMPLIANCE DATA FORM'!I27","v":{"v":0,"d":"$0"}},{"$f":"'COMPLIANCE DATA FORM'!J27","v":0},{"$f":"'COMPLIANCE DATA FORM'!K27","v":0},{"$f":"'COMPLIANCE DATA FORM'!L27","v":{"v":0,"d":"0.00"}},{"$f":"'COMPLIANCE DATA FORM'!M27","v":0},{"$f":"'COMPLIANCE DATA FORM'!N27","v":""},{"$f":"'COMPLIANCE DATA FORM'!O27","v":0}]
[{"$f":"'COMPLIANCE DATA FORM'!$D$1","v":0},{"$f":"'COMPLIANCE DATA FORM'!$D$2","v":0},{"$f":"'COMPLIANCE DATA FORM'!$D$3","v":0},{"$f":"'COMPLIANCE DATA FORM'!$D$4","v":0},{"$f":"'COMPLIANCE DATA FORM'!$E$6","v":0},{"$f":"'COMPLIANCE DATA FORM'!$E$7","v":0},{"$f":"'COMPLIANCE DATA FORM'!$K$1","v":0},{"$f":"'COMPLIANCE DATA FORM'!$K$2","v":0},{"$f":"'COMPLIANCE DATA FORM'!$K$3","v":0},{"$f":"'COMPLIANCE DATA FORM'!$K$4","v":0},{"$f":"'COMPLIANCE DATA FORM'!$K$6","v":0},{"$f":"'COMPLIANCE DATA FORM'!$K$7","v":0},{"$f":"'COMPLIANCE DATA FORM'!$K$8","v":0},{"$f":"'COMPLIANCE DATA FORM'!$K$9","v":0},{"$f":"'COMPLIANCE DATA FORM'!B28","v":0},{"$f":"'COMPLIANCE DATA FORM'!C28","v":0},{"$f":"'COMPLIANCE DATA FORM'!D28","v":0},{"$f":"'COMPLIANCE DATA FORM'!E28","v":0},{"$f":"'COMPLIANCE DATA FORM'!F28","v":0},{"$f":"'COMPLIANCE DATA FORM'!G28","v":0},{"$f":"'COMPLIANCE DATA FORM'!H28","v":"00:00:00"},{"$f":"'COMPLIANCE DATA FORM'!I28","v":{"v":0,"d":"$0"}},{"$f":"'COMPLIANCE DATA FORM'!J28","v":0},{"$f":"'COMPLIANCE DATA FORM'!K28","v":0},{"$f":"'COMPLIANCE DATA FORM'!L28","v":{"v":0,"d":"0.00"}},{"$f":"'COMPLIANCE DATA FORM'!M28","v":0},{"$f":"'COMPLIANCE DATA FORM'!N28","v":""},{"$f":"'COMPLIANCE DATA FORM'!O28","v":0}]
[{"$f":"'COMPLIANCE DATA FORM'!$D$1","v":0},{"$f":"'COMPLIANCE DATA FORM'!$D$2","v":0},{"$f":"'COMPLIANCE DATA FORM'!$D$3","v":0},{"$f":"'COMPLIANCE DATA FORM'!$D$4","v":0},{"$f":"'COMPLIANCE DATA FORM'!$E$6","v":0},{"$f":"'COMPLIANCE DATA FORM'!$E$7","v":0},{"$f":"'COMPLIANCE DATA FORM'!$K$1","v":0},{"$f":"'COMPLIANCE DATA FORM'!$K$2","v":0},{"$f":"'COMPLIANCE DATA FORM'!$K$3","v":0},{"$f":"'COMPLIANCE DATA FORM'!$K$4","v":0},{"$f":"'COMPLIANCE DATA FORM'!$K$6","v":0},{"$f":"'COMPLIANCE DATA FORM'!$K$7","v":0},{"$f":"'COMPLIANCE DATA FORM'!$K$8","v":0},{"$f":"'COMPLIANCE DATA FORM'!$K$9","v":0},{"$f":"'COMPLIANCE DATA FORM'!B29","v":0},{"$f":"'COMPLIANCE DATA FORM'!C29","v":0},{"$f":"'COMPLIANCE DATA FORM'!D29","v":0},{"$f":"'COMPLIANCE DATA FORM'!E29","v":0},{"$f":"'COMPLIANCE DATA FORM'!F29","v":0},{"$f":"'COMPLIANCE DATA FORM'!G29","v":0},{"$f":"'COMPLIANCE DATA FORM'!H29","v":"00:00:00"},{"$f":"'COMPLIANCE DATA FORM'!I29","v":{"v":0,"d":"$0"}},{"$f":"'COMPLIANCE DATA FORM'!J29","v":0},{"$f":"'COMPLIANCE DATA FORM'!K29","v":0},{"$f":"'COMPLIANCE DATA FORM'!L29","v":{"v":0,"d":"0.00"}},{"$f":"'COMPLIANCE DATA FORM'!M29","v":0},{"$f":"'COMPLIANCE DATA FORM'!N29","v":""},{"$f":"'COMPLIANCE DATA FORM'!O29","v":0}]
[{"$f":"'COMPLIANCE DATA FORM'!$D$1","v":0},{"$f":"'COMPLIANCE DATA FORM'!$D$2","v":0},{"$f":"'COMPLIANCE DATA FORM'!$D$3","v":0},{"$f":"'COMPLIANCE DATA FORM'!$D$4","v":0},{"$f":"'COMPLIANCE DATA FORM'!$E$6","v":0},{"$f":"'COMPLIANCE DATA FORM'!$E$7","v":0},{"$f":"'COMPLIANCE DATA FORM'!$K$1","v":0},{"$f":"'COMPLIANCE DATA FORM'!$K$2","v":0},{"$f":"'COMPLIANCE DATA FORM'!$K$3","v":0},{"$f":"'COMPLIANCE DATA FORM'!$K$4","v":0},{"$f":"'COMPLIANCE DATA FORM'!$K$6","v":0},{"$f":"'COMPLIANCE DATA FORM'!$K$7","v":0},{"$f":"'COMPLIANCE DATA FORM'!$K$8","v":0},{"$f":"'COMPLIANCE DATA FORM'!$K$9","v":0},{"$f":"'COMPLIANCE DATA FORM'!B47","v":0},{"$f":"'COMPLIANCE DATA FORM'!C47","v":0},{"$f":"'COMPLIANCE DATA FORM'!D47","v":0},{"$f":"'COMPLIANCE DATA FORM'!E47","v":0},{"$f":"'COMPLIANCE DATA FORM'!F47","v":0},{"$f":"'COMPLIANCE DATA FORM'!G47","v":0},{"$f":"'COMPLIANCE DATA FORM'!H47","v":"00:00:00"},{"$f":"'COMPLIANCE DATA FORM'!I47","v":0},{"$f":"'COMPLIANCE DATA FORM'!J47","v":"00:00:00"},{"$f":"'COMPLIANCE DATA FORM'!K47","v":0},{"$f":"'COMPLIANCE DATA FORM'!L47","v":0},{"$f":"'COMPLIANCE DATA FORM'!M47","v":0},{"$f":"'COMPLIANCE DATA FORM'!N47","v":0},{"$f":"'COMPLIANCE DATA FORM'!O47","v":""}]
[{"$f":"'COMPLIANCE DATA FORM'!$D$1","v":0},{"$f":"'COMPLIANCE DATA FORM'!$D$2","v":0},{"$f":"'COMPLIANCE DATA FORM'!$D$3","v":0},{"$f":"'COMPLIANCE DATA FORM'!$D$4","v":0},{"$f":"'COMPLIANCE DATA FORM'!$E$6","v":0},{"$f":"'COMPLIANCE DATA FORM'!$E$7","v":0},{"$f":"'COMPLIANCE DATA FORM'!$K$1","v":0},{"$f":"'COMPLIANCE DATA FORM'!$K$2","v":0},{"$f":"'COMPLIANCE DATA FORM'!$K$3","v":0},{"$f":"'COMPLIANCE DATA FORM'!$K$4","v":0},{"$f":"'COMPLIANCE DATA FORM'!$K$6","v":0},{"$f":"'COMPLIANCE DATA FORM'!$K$7","v":0},{"$f":"'COMPLIANCE DATA FORM'!$K$8","v":0},{"$f":"'COMPLIANCE DATA FORM'!$K$9","v":0},{"$f":"'COMPLIANCE DATA FORM'!B48","v":0},{"$f":"'COMPLIANCE DATA FORM'!C48","v":0},{"$f":"'COMPLIANCE DATA FORM'!D48","v":0},{"$f":"'COMPLIANCE DATA FORM'!E48","v":0},{"$f":"'COMPLIANCE DATA FORM'!F48","v":0},{"$f":"'COMPLIANCE DATA FORM'!G48","v":0},{"$f":"'COMPLIANCE DATA FORM'!H48","v":"00:00:00"},{"$f":"'COMPLIANCE DATA FORM'!I48","v":0},{"$f":"'COMPLIANCE DATA FORM'!J48","v":"00:00:00"},{"$f":"'COMPLIANCE DATA FORM'!K48","v":0},{"$f":"'COMPLIANCE DATA FORM'!L48","v":0},{"$f":"'COMPLIANCE DATA FORM'!M48","v":0},{"$f":"'COMPLIANCE DATA FORM'!N48","v":0},{"$f":"'COMPLIANCE DATA FORM'!O48","v":""}]
[{"$f":"'COMPLIANCE DATA FORM'!$D$1","v":0},{"$f":"'COMPLIANCE DATA FORM'!$D$2","v":0},{"$f":"'COMPLIANCE DATA FORM'!$D$3","v":0},{"$f":"'COMPLIANCE DATA FORM'!$D$4","v":0},{"$f":"'COMPLIANCE DATA FORM'!$E$6","v":0},{"$f":"'COMPLIANCE DATA FORM'!$E$7","v":0},{"$f":"'COMPLIANCE DATA FORM'!$K$1","v":0},{"$f":"'COMPLIANCE DATA FORM'!$K$2","v":0},{"$f":"'COMPLIANCE DATA FORM'!$K$3","v":0},{"$f":"'COMPLIANCE DATA FORM'!$K$4","v":0},{"$f":"'COMPLIANCE DATA FORM'!$K$6","v":0},{"$f":"'COMPLIANCE DATA FORM'!$K$7","v":0},{"$f":"'COMPLIANCE DATA FORM'!$K$8","v":0},{"$f":"'COMPLIANCE DATA FORM'!$K$9","v":0},{"$f":"'COMPLIANCE DATA FORM'!B49","v":0},{"$f":"'COMPLIANCE DATA FORM'!C49","v":0},{"$f":"'COMPLIANCE DATA FORM'!D49","v":0},{"$f":"'COMPLIANCE DATA FORM'!E49","v":0},{"$f":"'COMPLIANCE DATA FORM'!F49","v":0},{"$f":"'COMPLIANCE DATA FORM'!G49","v":0},{"$f":"'COMPLIANCE DATA FORM'!H49","v":"00:00:00"},{"$f":"'COMPLIANCE DATA FORM'!I49","v":0},{"$f":"'COMPLIANCE DATA FORM'!J49","v":"00:00:00"},{"$f":"'COMPLIANCE DATA FORM'!K49","v":0},{"$f":"'COMPLIANCE DATA FORM'!L49","v":0},{"$f":"'COMPLIANCE DATA FORM'!M49","v":0},{"$f":"'COMPLIANCE DATA FORM'!N49","v":0},{"$f":"'COMPLIANCE DATA FORM'!O49","v":""}]
[{"$f":"'COMPLIANCE DATA FORM'!$D$1","v":0},{"$f":"'COMPLIANCE DATA FORM'!$D$2","v":0},{"$f":"'COMPLIANCE DATA FORM'!$D$3","v":0},{"$f":"'COMPLIANCE DATA FORM'!$D$4","v":0},{"$f":"'COMPLIANCE DATA FORM'!$E$6","v":0},{"$f":"'COMPLIANCE DATA FORM'!$E$7","v":0},{"$f":"'COMPLIANCE DATA FORM'!$K$1","v":0},{"$f":"'COMPLIANCE DATA FORM'!$K$2","v":0},{"$f":"'COMPLIANCE DATA FORM'!$K$3","v":0},{"$f":"'COMPLIANCE DATA FORM'!$K$4","v":0},{"$f":"'COMPLIANCE DATA FORM'!$K$6","v":0},{"$f":"'COMPLIANCE DATA FORM'!$K$7","v":0},{"$f":"'COMPLIANCE DATA FORM'!$K$8","v":0},{"$f":"'COMPLIANCE DATA FORM'!$K$9","v":0},{"$f":"'COMPLIANCE DATA FORM'!B50","v":0},{"$f":"'COMPLIANCE DATA FORM'!C50","v":0},{"$f":"'COMPLIANCE DATA FORM'!D50","v":0},{"$f":"'COMPLIANCE DATA FORM'!E50","v":0},{"$f":"'COMPLIANCE DATA FORM'!F50","v":0},{"$f":"'COMPLIANCE DATA FORM'!G50","v":0},{"$f":"'COMPLIANCE DATA FORM'!H50","v":"00:00:00"},{"$f":"'COMPLIANCE DATA FORM'!I50","v":0},{"$f":"'COMPLIANCE DATA FORM'!J50","v":"00:00:00"},{"$f":"'COMPLIANCE DATA FORM'!K50","v":0},{"$f":"'COMPLIANCE DATA FORM'!L50","v":0},{"$f":"'COMPLIANCE DATA FORM'!M50","v":0},{"$f":"'COMPLIANCE DATA FORM'!N50","v":0},{"$f":"'COMPLIANCE DATA FORM'!O50","v":""}]
[{"$f":"'COMPLIANCE DATA FORM'!$D$1","v":0},{"$f":"'COMPLIANCE DATA FORM'!$D$2","v":0},{"$f":"'COMPLIANCE DATA FORM'!$D$3","v":0},{"$f":"'COMPLIANCE DATA FORM'!$D$4","v":0},{"$f":"'COMPLIANCE DATA FORM'!$E$6","v":0},{"$f":"'COMPLIANCE DATA FORM'!$E$7","v":0},{"$f":"'COMPLIANCE DATA FORM'!$K$1","v":0},{"$f":"'COMPLIANCE DATA FORM'!$K$2","v":0},{"$f":"'COMPLIANCE DATA FORM'!$K$3","v":0},{"$f":"'COMPLIANCE DATA FORM'!$K$4","v":0},{"$f":"'COMPLIANCE DATA FORM'!$K$6","v":0},{"$f":"'COMPLIANCE DATA FORM'!$K$7","v":0},{"$f":"'COMPLIANCE DATA FORM'!$K$8","v":0},{"$f":"'COMPLIANCE DATA FORM'!$K$9","v":0},{"$f":"'COMPLIANCE DATA FORM'!B51","v":0},{"$f":"'COMPLIANCE DATA FORM'!C51","v":0},{"$f":"'COMPLIANCE DATA FORM'!D51","v":0},{"$f":"'COMPLIANCE DATA FORM'!E51","v":0},{"$f":"'COMPLIANCE DATA FORM'!F51","v":0},{"$f":"'COMPLIANCE DATA FORM'!G51","v":0},{"$f":"'COMPLIANCE DATA FORM'!H51","v":"00:00:00"},{"$f":"'COMPLIANCE DATA FORM'!I51","v":0},{"$f":"'COMPLIANCE DATA FORM'!J51","v":"00:00:00"},{"$f":"'COMPLIANCE DATA FORM'!K51","v":0},{"$f":"'COMPLIANCE DATA FORM'!L51","v":0},{"$f":"'COMPLIANCE DATA FORM'!M51","v":0},{"$f":"'COMPLIANCE DATA FORM'!N51","v":0},{"$f":"'COMPLIANCE DATA FORM'!O51","v":""}]
[{"$f":"'COMPLIANCE DATA FORM'!$D$1","v":0},{"$f":"'COMPLIANCE DATA FORM'!$D$2","v":0},{"$f":"'COMPLIANCE DATA FORM'!$D$3","v":0},{"$f":"'COMPLIANCE DATA FORM'!$D$4","v":0},{"$f":"'COMPLIANCE DATA FORM'!$E$6","v":0},{"$f":"'COMPLIANCE DATA FORM'!$E$7","v":0},{"$f":"'COMPLIANCE DATA FORM'!$K$1","v":0},{"$f":"'COMPLIANCE DATA FORM'!$K$2","v":0},{"$f":"'COMPLIANCE DATA FORM'!$K$3","v":0},{"$f":"'COMPLIANCE DATA FORM'!$K$4","v":0},{"$f":"'COMPLIANCE DATA FORM'!$K$6","v":0},{"$f":"'COMPLIANCE DATA FORM'!$K$7","v":0},{"$f":"'COMPLIANCE DATA FORM'!$K$8","v":0},{"$f":"'COMPLIANCE DATA FORM'!$K$9","v":0},{"$f":"'COMPLIANCE DATA FORM'!B52","v":0},{"$f":"'COMPLIANCE DATA FORM'!C52","v":0},{"$f":"'COMPLIANCE DATA FORM'!D52","v":0},{"$f":"'COMPLIANCE DATA FORM'!E52","v":0},{"$f":"'COMPLIANCE DATA FORM'!F52","v":0},{"$f":"'COMPLIANCE DATA FORM'!G52","v":0},{"$f":"'COMPLIANCE DATA FORM'!H52","v":"00:00:00"},{"$f":"'COMPLIANCE DATA FORM'!I52","v":0},{"$f":"'COMPLIANCE DATA FORM'!J52","v":"00:00:00"},{"$f":"'COMPLIANCE DATA FORM'!K52","v":0},{"$f":"'COMPLIANCE DATA FORM'!L52","v":0},{"$f":"'COMPLIANCE DATA FORM'!M52","v":0},{"$f":"'COMPLIANCE DATA FORM'!N52","v":0},{"$f":"'COMPLIANCE DATA FORM'!O52","v":""}]
[{"$f":"'COMPLIANCE DATA FORM'!$D$1","v":0},{"$f":"'COMPLIANCE DATA FORM'!$D$2","v":0},{"$f":"'COMPLIANCE DATA FORM'!$D$3","v":0},{"$f":"'COMPLIANCE DATA FORM'!$D$4","v":0},{"$f":"'COMPLIANCE DATA FORM'!$E$6","v":0},{"$f":"'COMPLIANCE DATA FORM'!$E$7","v":0},{"$f":"'COMPLIANCE DATA FORM'!$K$1","v":0},{"$f":"'COMPLIANCE DATA FORM'!$K$2","v":0},{"$f":"'COMPLIANCE DATA FORM'!$K$3","v":0},{"$f":"'COMPLIANCE DATA FORM'!$K$4","v":0},{"$f":"'COMPLIANCE DATA FORM'!$K$6","v":0},{"$f":"'COMPLIANCE DATA FORM'!$K$7","v":0},{"$f":"'COMPLIANCE DATA FORM'!$K$8","v":0},{"$f":"'COMPLIANCE DATA FORM'!$K$9","v":0},{"$f":"'COMPLIANCE DATA FORM'!B53","v":0},{"$f":"'COMPLIANCE DATA FORM'!C53","v":0},{"$f":"'COMPLIANCE DATA FORM'!D53","v":0},{"$f":"'COMPLIANCE DATA FORM'!E53","v":0},{"$f":"'COMPLIANCE DATA FORM'!F53","v":0},{"$f":"'COMPLIANCE DATA FORM'!G53","v":0},{"$f":"'COMPLIANCE DATA FORM'!H53","v":"00:00:00"},{"$f":"'COMPLIANCE DATA FORM'!I53","v":0},{"$f":"'COMPLIANCE DATA FORM'!J53","v":"00:00:00"},{"$f":"'COMPLIANCE DATA FORM'!K53","v":0},{"$f":"'COMPLIANCE DATA FORM'!L53","v":0},{"$f":"'COMPLIANCE DATA FORM'!M53","v":0},{"$f":"'COMPLIANCE DATA FORM'!N53","v":0},{"$f":"'COMPLIANCE DATA FORM'!O53","v":""}]
[{"$f":"'COMPLIANCE DATA FORM'!$D$1","v":0},{"$f":"'COMPLIANCE DATA FORM'!$D$2","v":0},{"$f":"'COMPLIANCE DATA FORM'!$D$3","v":0},{"$f":"'COMPLIANCE DATA FORM'!$D$4","v":0},{"$f":"'COMPLIANCE DATA FORM'!$E$6","v":0},{"$f":"'COMPLIANCE DATA FORM'!$E$7","v":0},{"$f":"'COMPLIANCE DATA FORM'!$K$1","v":0},{"$f":"'COMPLIANCE DATA FORM'!$K$2","v":0},{"$f":"'COMPLIANCE DATA FORM'!$K$3","v":0},{"$f":"'COMPLIANCE DATA FORM'!$K$4","v":0},{"$f":"'COMPLIANCE DATA FORM'!$K$6","v":0},{"$f":"'COMPLIANCE DATA FORM'!$K$7","v":0},{"$f":"'COMPLIANCE DATA FORM'!$K$8","v":0},{"$f":"'COMPLIANCE DATA FORM'!$K$9","v":0},{"$f":"'COMPLIANCE DATA FORM'!B54","v":0},{"$f":"'COMPLIANCE DATA FORM'!C54","v":0},{"$f":"'COMPLIANCE DATA FORM'!D54","v":0},{"$f":"'COMPLIANCE DATA FORM'!E54","v":0},{"$f":"'COMPLIANCE DATA FORM'!F54","v":0},{"$f":"'COMPLIANCE DATA FORM'!G54","v":0},{"$f":"'COMPLIANCE DATA FORM'!H54","v":"00:00:00"},{"$f":"'COMPLIANCE DATA FORM'!I54","v":0},{"$f":"'COMPLIANCE DATA FORM'!J54","v":"00:00:00"},{"$f":"'COMPLIANCE DATA FORM'!K54","v":0},{"$f":"'COMPLIANCE DATA FORM'!L54","v":0},{"$f":"'COMPLIANCE DATA FORM'!M54","v":0},{"$f":"'COMPLIANCE DATA FORM'!N54","v":0},{"$f":"'COMPLIANCE DATA FORM'!O54","v":""}]
[{"$f":"'COMPLIANCE DATA FORM'!$D$1","v":0},{"$f":"'COMPLIANCE DATA FORM'!$D$2","v":0},{"$f":"'COMPLIANCE DATA FORM'!$D$3","v":0},{"$f":"'COMPLIANCE DATA FORM'!$D$4","v":0},{"$f":"'COMPLIANCE DATA FORM'!$E$6","v":0},{"$f":"'COMPLIANCE DATA FORM'!$E$7","v":0},{"$f":"'COMPLIANCE DATA FORM'!$K$1","v":0},{"$f":"'COMPLIANCE DATA FORM'!$K$2","v":0},{"$f":"'COMPLIANCE DATA FORM'!$K$3","v":0},{"$f":"'COMPLIANCE DATA FORM'!$K$4","v":0},{"$f":"'COMPLIANCE DATA FORM'!$K$6","v":0},{"$f":"'COMPLIANCE DATA FORM'!$K$7","v":0},{"$f":"'COMPLIANCE DATA FORM'!$K$8","v":0},{"$f":"'COMPLIANCE DATA FORM'!$K$9","v":0},{"$f":"'COMPLIANCE DATA FORM'!B55","v":0},{"$f":"'COMPLIANCE DATA FORM'!C55","v":0},{"$f":"'COMPLIANCE DATA FORM'!D55","v":0},{"$f":"'COMPLIANCE DATA FORM'!E55","v":0},{"$f":"'COMPLIANCE DATA FORM'!F55","v":0},{"$f":"'COMPLIANCE DATA FORM'!G55","v":0},{"$f":"'COMPLIANCE DATA FORM'!H55","v":"00:00:00"},{"$f":"'COMPLIANCE DATA FORM'!I55","v":0},{"$f":"'COMPLIANCE DATA FORM'!J55","v":"00:00:00"},{"$f":"'COMPLIANCE DATA FORM'!K55","v":0},{"$f":"'COMPLIANCE DATA FORM'!L55","v":0},{"$f":"'COMPLIANCE DATA FORM'!M55","v":0},{"$f":"'COMPLIANCE DATA FORM'!N55","v":0},{"$f":"'COMPLIANCE DATA FORM'!O55","v":""}]
[{"$f":"'COMPLIANCE DATA FORM'!$D$1","v":0},{"$f":"'COMPLIANCE DATA FORM'!$D$2","v":0},{"$f":"'COMPLIANCE DATA FORM'!$D$3","v":0},{"$f":"'COMPLIANCE DATA FORM'!$D$4","v":0},{"$f":"'COMPLIANCE DATA FORM'!$E$6","v":0},{"$f":"'COMPLIANCE DATA FORM'!$E$7","v":0},{"$f":"'COMPLIANCE DATA FORM'!$K$1","v":0},{"$f":"'COMPLIANCE DATA FORM'!$K$2","v":0},{"$f":"'COMPLIANCE DATA FORM'!$K$3","v":0},{"$f":"'COMPLIANCE DATA FORM'!$K$4","v":0},{"$f":"'COMPLIANCE DATA FORM'!$K$6","v":0},{"$f":"'COMPLIANCE DATA FORM'!$K$7","v":0},{"$f":"'COMPLIANCE DATA FORM'!$K$8","v":0},{"$f":"'COMPLIANCE DATA FORM'!$K$9","v":0},{"$f":"'COMPLIANCE DATA FORM'!B56","v":0},{"$f":"'COMPLIANCE DATA FORM'!C56","v":0},{"$f":"'COMPLIANCE DATA FORM'!D56","v":0},{"$f":"'COMPLIANCE DATA FORM'!E56","v":0},{"$f":"'COMPLIANCE DATA FORM'!F56","v":0},{"$f":"'COMPLIANCE DATA FORM'!G56","v":0},{"$f":"'COMPLIANCE DATA FORM'!H56","v":"00:00:00"},{"$f":"'COMPLIANCE DATA FORM'!I56","v":0},{"$f":"'COMPLIANCE DATA FORM'!J56","v":"00:00:00"},{"$f":"'COMPLIANCE DATA FORM'!K56","v":0},{"$f":"'COMPLIANCE DATA FORM'!L56","v":0},{"$f":"'COMPLIANCE DATA FORM'!M56","v":0},{"$f":"'COMPLIANCE DATA FORM'!N56","v":0},{"$f":"'COMPLIANCE DATA FORM'!O56","v":""}]
[{"$f":"'COMPLIANCE DATA FORM'!$D$1","v":0},{"$f":"'COMPLIANCE DATA FORM'!$D$2","v":0},{"$f":"'COMPLIANCE DATA FORM'!$D$3","v":0},{"$f":"'COMPLIANCE DATA FORM'!$D$4","v":0},{"$f":"'COMPLIANCE DATA FORM'!$E$6","v":0},{"$f":"'COMPLIANCE DATA FORM'!$E$7","v":0},{"$f":"'COMPLIANCE DATA FORM'!$K$1","v":0},{"$f":"'COMPLIANCE DATA FORM'!$K$2","v":0},{"$f":"'COMPLIANCE DATA FORM'!$K$3","v":0},{"$f":"'COMPLIANCE DATA FORM'!$K$4","v":0},{"$f":"'COMPLIANCE DATA FORM'!$K$6","v":0},{"$f":"'COMPLIANCE DATA FORM'!$K$7","v":0},{"$f":"'COMPLIANCE DATA FORM'!$K$8","v":0},{"$f":"'COMPLIANCE DATA FORM'!$K$9","v":0},{"$f":"'COMPLIANCE DATA FORM'!B57","v":0},{"$f":"'COMPLIANCE DATA FORM'!C57","v":0},{"$f":"'COMPLIANCE DATA FORM'!D57","v":0},{"$f":"'COMPLIANCE DATA FORM'!E57","v":0},{"$f":"'COMPLIANCE DATA FORM'!F57","v":0},{"$f":"'COMPLIANCE DATA FORM'!G57","v":0},{"$f":"'COMPLIANCE DATA FORM'!H57","v":"00:00:00"},{"$f":"'COMPLIANCE DATA FORM'!I57","v":0},{"$f":"'COMPLIANCE DATA FORM'!J57","v":"00:00:00"},{"$f":"'COMPLIANCE DATA FORM'!K57","v":0},{"$f":"'COMPLIANCE DATA FORM'!L57","v":0},{"$f":"'COMPLIANCE DATA FORM'!M57","v":0},{"$f":"'COMPLIANCE DATA FORM'!N57","v":0},{"$f":"'COMPLIANCE DATA FORM'!O57","v":""}]
[{"$f":"'COMPLIANCE DATA FORM'!$D$1","v":0},{"$f":"'COMPLIANCE DATA FORM'!$D$2","v":0},{"$f":"'COMPLIANCE DATA FORM'!$D$3","v":0},{"$f":"'COMPLIANCE DATA FORM'!$D$4","v":0},{"$f":"'COMPLIANCE DATA FORM'!$E$6","v":0},{"$f":"'COMPLIANCE DATA FORM'!$E$7","v":0},{"$f":"'COMPLIANCE DATA FORM'!$K$1","v":0},{"$f":"'COMPLIANCE DATA FORM'!$K$2","v":0},{"$f":"'COMPLIANCE DATA FORM'!$K$3","v":0},{"$f":"'COMPLIANCE DATA FORM'!$K$4","v":0},{"$f":"'COMPLIANCE DATA FORM'!$K$6","v":0},{"$f":"'COMPLIANCE DATA FORM'!$K$7","v":0},{"$f":"'COMPLIANCE DATA FORM'!$K$8","v":0},{"$f":"'COMPLIANCE DATA FORM'!$K$9","v":0},{"$f":"'COMPLIANCE DATA FORM'!B58","v":0},{"$f":"'COMPLIANCE DATA FORM'!C58","v":0},{"$f":"'COMPLIANCE DATA FORM'!D58","v":0},{"$f":"'COMPLIANCE DATA FORM'!E58","v":0},{"$f":"'COMPLIANCE DATA FORM'!F58","v":0},{"$f":"'COMPLIANCE DATA FORM'!G58","v":0},{"$f":"'COMPLIANCE DATA FORM'!H58","v":"00:00:00"},{"$f":"'COMPLIANCE DATA FORM'!I58","v":0},{"$f":"'COMPLIANCE DATA FORM'!J58","v":"00:00:00"},{"$f":"'COMPLIANCE DATA FORM'!K58","v":0},{"$f":"'COMPLIANCE DATA FORM'!L58","v":0},{"$f":"'COMPLIANCE DATA FORM'!M58","v":0},{"$f":"'COMPLIANCE DATA FORM'!N58","v":0},{"$f":"'COMPLIANCE DATA FORM'!O58","v":""}]
[{"$f":"'COMPLIANCE DATA FORM'!$D$1","v":0},{"$f":"'COMPLIANCE DATA FORM'!$D$2","v":0},{"$f":"'COMPLIANCE DATA FORM'!$D$3","v":0},{"$f":"'COMPLIANCE DATA FORM'!$D$4","v":0},{"$f":"'COMPLIANCE DATA FORM'!$E$6","v":0},{"$f":"'COMPLIANCE DATA FORM'!$E$7","v":0},{"$f":"'COMPLIANCE DATA FORM'!$K$1","v":0},{"$f":"'COMPLIANCE DATA FORM'!$K$2","v":0},{"$f":"'COMPLIANCE DATA FORM'!$K$3","v":0},{"$f":"'COMPLIANCE DATA FORM'!$K$4","v":0},{"$f":"'COMPLIANCE DATA FORM'!$K$6","v":0},{"$f":"'COMPLIANCE DATA FORM'!$K$7","v":0},{"$f":"'COMPLIANCE DATA FORM'!$K$8","v":0},{"$f":"'COMPLIANCE DATA FORM'!$K$9","v":0},{"$f":"'COMPLIANCE DATA FORM'!B59","v":0},{"$f":"'COMPLIANCE DATA FORM'!C59","v":0},{"$f":"'COMPLIANCE DATA FORM'!D59","v":0},{"$f":"'COMPLIANCE DATA FORM'!E59","v":0},{"$f":"'COMPLIANCE DATA FORM'!F59","v":0},{"$f":"'COMPLIANCE DATA FORM'!G59","v":0},{"$f":"'COMPLIANCE DATA FORM'!H59","v":"00:00:00"},{"$f":"'COMPLIANCE DATA FORM'!I59","v":0},{"$f":"'COMPLIANCE DATA FORM'!J59","v":"00:00:00"},{"$f":"'COMPLIANCE DATA FORM'!K59","v":0},{"$f":"'COMPLIANCE DATA FORM'!L59","v":0},{"$f":"'COMPLIANCE DATA FORM'!M59","v":0},{"$f":"'COMPLIANCE DATA FORM'!N59","v":0},{"$f":"'COMPLIANCE DATA FORM'!O59","v":""}]
[{"$f":"'COMPLIANCE DATA FORM'!$D$1","v":0},{"$f":"'COMPLIANCE DATA FORM'!$D$2","v":0},{"$f":"'COMPLIANCE DATA FORM'!$D$3","v":0},{"$f":"'COMPLIANCE DATA FORM'!$D$4","v":0},{"$f":"'COMPLIANCE DATA FORM'!$E$6","v":0},{"$f":"'COMPLIANCE DATA FORM'!$E$7","v":0},{"$f":"'COMPLIANCE DATA FORM'!$K$1","v":0},{"$f":"'COMPLIANCE DATA FORM'!$K$2","v":0},{"$f":"'COMPLIANCE DATA FORM'!$K$3","v":0},{"$f":"'COMPLIANCE DATA FORM'!$K$4","v":0},{"$f":"'COMPLIANCE DATA FORM'!$K$6","v":0},{"$f":"'COMPLIANCE DATA FORM'!$K$7","v":0},{"$f":"'COMPLIANCE DATA FORM'!$K$8","v":0},{"$f":"'COMPLIANCE DATA FORM'!$K$9","v":0},{"$f":"'COMPLIANCE DATA FORM'!B60","v":0},{"$f":"'COMPLIANCE DATA FORM'!C60","v":0},{"$f":"'COMPLIANCE DATA FORM'!D60","v":0},{"$f":"'COMPLIANCE DATA FORM'!E60","v":0},{"$f":"'COMPLIANCE DATA FORM'!F60","v":0},{"$f":"'COMPLIANCE DATA FORM'!G60","v":0},{"$f":"'COMPLIANCE DATA FORM'!H60","v":"00:00:00"},{"$f":"'COMPLIANCE DATA FORM'!I60","v":0},{"$f":"'COMPLIANCE DATA FORM'!J60","v":"00:00:00"},{"$f":"'COMPLIANCE DATA FORM'!K60","v":0},{"$f":"'COMPLIANCE DATA FORM'!L60","v":0},{"$f":"'COMPLIANCE DATA FORM'!M60","v":0},{"$f":"'COMPLIANCE DATA FORM'!N60","v":0},{"$f":"'COMPLIANCE DATA FORM'!O60","v":""}]
[{"$f":"'COMPLIANCE DATA FORM'!$D$1","v":0},{"$f":"'COMPLIANCE DATA FORM'!$D$2","v":0},{"$f":"'COMPLIANCE DATA FORM'!$D$3","v":0},{"$f":"'COMPLIANCE DATA FORM'!$D$4","v":0},{"$f":"'COMPLIANCE DATA FORM'!$E$6","v":0},{"$f":"'COMPLIANCE DATA FORM'!$E$7","v":0},{"$f":"'COMPLIANCE DATA FORM'!$K$1","v":0},{"$f":"'COMPLIANCE DATA FORM'!$K$2","v":0},{"$f":"'COMPLIANCE DATA FORM'!$K$3","v":0},{"$f":"'COMPLIANCE DATA FORM'!$K$4","v":0},{"$f":"'COMPLIANCE DATA FORM'!$K$6","v":0},{"$f":"'COMPLIANCE DATA FORM'!$K$7","v":0},{"$f":"'COMPLIANCE DATA FORM'!$K$8","v":0},{"$f":"'COMPLIANCE DATA FORM'!$K$9","v":0},{"$f":"'COMPLIANCE DATA FORM'!B61","v":0},{"$f":"'COMPLIANCE DATA FORM'!C61","v":0},{"$f":"'COMPLIANCE DATA FORM'!D61","v":0},{"$f":"'COMPLIANCE DATA FORM'!E61","v":0},{"$f":"'COMPLIANCE DATA FORM'!F61","v":0},{"$f":"'COMPLIANCE DATA FORM'!G61","v":0},{"$f":"'COMPLIANCE DATA FORM'!H61","v":"00:00:00"},{"$f":"'COMPLIANCE DATA FORM'!I61","v":0},{"$f":"'COMPLIANCE DATA FORM'!J61","v":"00:00:00"},{"$f":"'COMPLIANCE DATA FORM'!K61","v":0},{"$f":"'COMPLIANCE DATA FORM'!L61","v":0},{"$f":"'COMPLIANCE DATA FORM'!M61","v":0},{"$f":"'COMPLIANCE DATA FORM'!N61","v":0},{"$f":"'COMPLIANCE DATA FORM'!O61","v":""}]